{"text_format":"1","workbook":"xlsx","n_sheets":6,"sheets":["Formularz wyceny","Waluty","Dodatkowe","Obliczenia","Podsumowanie","Grafika"],"not_rendered":{"charts":0,"images":3,"macros":1,"external_links":0,"defined_names":3,"comments":0,"pivot_tables":0},"unopened":[],"bounds":{"document_bytes":16777216,"sheet_cells":100000,"rows_first":2000,"rows_last":500,"rows_between":2000,"halvings":0,"cell_chars":16384,"cell_head_chars":4096},"cells_cut":0,"cells_raw":0,"read":"whole","date_system":"1900"}

{"sheet":"Formularz wyceny","index":0,"n_rows":126,"n_cols":15,"rows_kept":126,"cut":false,"hidden":false,"merged":[[101,0,101,9],[64,1,64,5],[107,1,107,5],[112,6,112,8],[95,1,95,5],[94,1,94,5],[99,1,99,5],[100,1,100,5],[74,1,74,5],[75,1,75,5],[76,1,76,5],[77,1,77,5],[87,0,87,9],[86,1,86,5],[73,1,73,5],[106,1,106,5],[108,1,108,5],[90,1,90,5],[93,1,93,5],[104,0,104,9],[105,1,105,5],[92,1,92,5],[85,1,85,5],[80,1,80,5],[127,0,128,9],[121,1,121,5],[122,0,122,9],[116,1,116,5],[109,0,109,9],[111,0,111,9],[120,0,120,9],[125,1,125,5],[112,1,112,5],[114,1,114,5],[113,1,113,5],[115,1,115,5],[117,0,117,9],[125,7,125,9],[91,1,91,5],[97,1,97,9],[98,1,98,5],[96,0,96,9],[89,1,89,5],[23,0,23,9],[30,1,30,5],[71,1,71,5],[58,0,58,9],[57,1,57,5],[56,6,56,8],[40,0,40,9],[43,0,43,9],[47,1,47,5],[39,1,39,5],[38,1,38,5],[47,6,47,8],[45,1,45,5],[44,1,44,5],[46,1,46,5],[78,1,78,5],[82,1,82,9],[84,1,84,5],[48,1,48,5],[53,0,57,0],[55,6,55,8],[48,6,48,8],[54,1,54,5],[72,1,72,5],[65,1,65,5],[61,0,61,9],[62,1,62,5],[63,1,63,5],[55,1,55,5],[56,1,56,5],[66,0,66,9],[69,0,69,9],[79,1,79,5],[81,1,81,5],[83,1,83,6],[9,3,9,8],[10,3,10,8],[11,3,11,8],[12,3,12,8],[13,3,13,8],[10,1,10,2],[11,1,11,2],[18,0,18,9],[27,1,27,4],[19,1,19,5],[20,1,20,5],[12,1,12,2],[13,1,13,2],[14,1,14,2],[36,0,36,9],[32,1,32,5],[37,1,37,5],[33,0,33,9],[49,0,49,9],[52,0,52,9],[53,1,53,5],[0,5,2,9],[0,0,2,4],[3,0,3,9],[5,0,5,9],[4,0,4,9],[26,0,26,9],[7,0,7,9],[21,1,21,5],[31,1,31,5],[29,1,29,4],[28,1,28,4],[22,1,22,5],[15,0,15,9],[14,3,14,8],[8,1,8,2],[9,1,9,2],[8,3,8,8]]}
[null,null,null,null,null,"Grenton Sp. z o.o.\nul. Na Wierzchowinach 3\n30-222 Kraków\n@: grenton@grenton.pl\ntel. :+48 12 2002 998 "]
[]
[]
[]
["Formularz wyceny  - Grenton Smart Home System"]
[]
[null,"Dane kontaktowe"]
[]
[null,"Imię:"]
[null,"Nazwisko:"]
[null,"Adres e-mail:"]
[null,"Telefon:"]
[null,"Województwo:"]
[null,"Miasto:"]
[null,"Waluta:",null,"PLN"]
[]
[null,"Obwody oświetleniowe"]
[null,"Proszę o podanie liczby punktów świetlnych (lub obwodów świetlnych)"]
[]
[null,"Obwody załącz/wyłącz",null,null,null,null,null,"szt.",null,null,null,null,null,"TAK","PEŁNA"]
[null,"Obwody ściemniane",null,null,null,null,null,"szt.",null,null,null,null,null,"NIE","PROSTA"]
[null,"Obwody LED RGBW",null,null,null,null,null,"szt.",null,null,null,null,null,null,"NIE"]
[null,"Jednobarwne paski LED - ściemniane",null,null,null,null,null,"szt."]
[]
[null,"Włączniki/przyciski/ panele - elementy sterujące"]
[null,"Proszę o podanie liczby elementów sterujących"]
[]
[null,"Włączników elektrycznych",null,null,null,"Pojedynczych",null,"szt."]
[null,"Włączników elektrycznych",null,null,null,"Podwójnych",null,"szt."]
[null,"Przycisków do rolet",null,null,null,"Podwójnych",null,"szt."]
[null,"Paneli dotyk. Grenton x4 z wyświeltaczem i obsługą gestów",null,null,null,null,null,"szt."]
[null,"Paneli dotyk. Grenton 4x przyciskowe",null,null,null,null,null,"szt."]
[null,"Paneli dotyk. Grenton 8x przyciskowe",null,null,null,null,null,"szt."]
[]
[null,"Załączanie urządzeń"]
[null,"Proszę o podanie liczby obwodów elektrycznych, którymi system powinien sterować"]
[]
[null,"Obwody gniazd elektrycznych (sterowalnych)",null,null,null,null,null,"szt."]
[null,"Ilość stref podlewania ogrodowego",null,null,null,null,null,"szt."]
[null,"Zawory elektryczne (wody, gazu)",null,null,null,null,null,"szt."]
[]
[null,"Ogrzewanie"]
[null,"Charakterystyka ogrzewania obiektu"]
[]
[null,"Ilość grzejników / grup grzejników",null,null,null,null,null,"szt."]
[null,"Ilość stref grzew., w których temp. ma być mierzona",null,null,null,null,null,"szt."]
[null,"Czy instalacja ma być zintegrowana z piecem?"]
[null,"Proszę podać producenta pieca"]
[null,"Proszę podać model pieca"]
[]
[null,"Instalacje wentylacji / klimatyzacji obiektu:"]
[null,"Proszę podać, czy planowany jest montaż ponższych elementów"]
[]
[null,"Centrali wentylacyjnej lub centrali wentylacyjnej z rekuperacją"]
[null,"Pompy ciepła"]
[null,"Proszę podać producenta i model centrali/rekuperatora"]
[null,"Proszę podać standard komunikacji"]
[null,"Klimatyzatorów w ilości:",null,null,null,null,null,"szt."]
[]
[null,"Systemy rolet/markiz/żaluzji"]
[null,"Proszę podać, ilość planowanych:"]
[]
[null,"Rolet / grup rolet",null,null,null,null,null,"szt."]
[null,"Markiz / grup markiz",null,null,null,null,null,"szt."]
[null,"Żaluzji / grup żaluzji",null,null,null,null,null,"szt. "]
[null,"Karnisze / grup karniszy",null,null,null,null,null,"szt."]
[]
[null,"Systemy alarmowe/czujniki"]
[null,"Proszę podać, ilość instalowanych czujników"]
[]
[null,"Sygnalizatory"]
[null,"Ruchu",null,null,null,null,null,"szt."]
[null,"Gazu",null,null,null,null,null,"szt."]
[null,"Gazu usypiającego",null,null,null,null,null,"szt."]
[null,"Dymu",null,null,null,null,null,"szt."]
[null,"Zalania / poziomu wody",null,null,null,null,null,"szt."]
[null,"Tlenku węgla (czadu)",null,null,null,null,null,"szt."]
[null,"Dwutlenku węgla",null,null,null,null,null,"szt."]
[null,"Jakości powietrza",null,null,null,null,null,"szt."]
[null,"Otwarcia drzwi/okien (kontaktrony)",null,null,null,null,null,"szt."]
[null,"Zmierzchu",null,null,null,null,null,"szt."]
[null,"Wystąpienia deszczu",null,null,null,null,null,"szt."]
[]
[null,"Niewymienione powyżej:"]
[null,null,null,null,null,null,null,"szt."]
[null,null,null,null,null,null,null,"szt."]
[null,null,null,null,null,null,null,"szt."]
[]
[null,"Pomiary ilości/temperatury"]
[null,"Wilgotności",null,null,null,null,null,"szt."]
[null,"Jakość gleby",null,null,null,null,null,"szt."]
[null,"Prędkości wiatru",null,null,null,null,null,"szt."]
[null,"Natężenia światła",null,null,null,null,null,"szt."]
[null,"Czujnik temperatury zewnętrznej",null,null,null,null,null,"szt."]
[null,"Poziom wody",null,null,null,null,null,"szt."]
[null,"Odległości",null,null,null,null,null,"szt."]
[]
[null,"Niewymienione powyżej:"]
[null,null,null,null,null,null,null,"szt."]
[null,null,null,null,null,null,null,"szt."]
[null,null,null,null,null,null,null,"szt."]
[]
[null,"Bramy wjazdowe/garażowe, furtki"]
[null,"Proszę podać, czy system Grenton sterować ma poniższymi elementami"]
[]
[null,"Bramą wjazdową",null,null,null,null,null,"szt."]
[null,"Bramą garażową",null,null,null,null,null,"szt."]
[null,"Furtką wejściową na posesje",null,null,null,null,null,"szt."]
[null,"Elektrozaczepy drzwi",null,null,null,null,null,"szt."]
[]
[null,"Integracja z zaawansowanymi systemami"]
[]
[null,"Integracja z systemem alarmowym Satel Integra/Jablotron"]
[null,"Integracja z systemem kontroli dostępu"]
[null,"Pobieranie informacji z usług sieciowych"]
[null,"Zaawansowane sterowanie multimediami"]
[null,"Multisensor",null,null,null,null,null,"szt."]
[]
[null,"Komunikacja z systemem automatyki Grenton"]
[null,"Proszę podać sposób komunikacji z systemem poza domem"]
[]
[null,"Zdalny dostęp przez chmurę",null,null,null,null,"Wyposażenie standardowe"]
[]
[null,"Zakres oferty"]
[]
[null,"Czy uwzględnić koszt montażu i konfiguracji urządzeń?"]

{"sheet":"Waluty","index":1,"n_rows":46,"n_cols":3,"rows_kept":46,"cut":false,"hidden":true,"merged":[]}
[]
[null,"VAT",0.23]
[null,"WALUTA","PLN"]
[null,"SYMBOL","zł"]
[null,"CLU Z-Wave",1218.69918699187]
[null,"DIGITAL IN DIN",397.5609756097561]
[null,"Relay x4 DIN",478.86178861788619]
[null,"Dimmer DIN",430.08130081300811]
[null,"LED RGB DIN",430.08130081300811]
[null,"Roller Shutter DIN",348.78048780487808]
[null,"Roller Shutter x3 DIN",600.81300813008136]
[null,"Analog IN/OUT 0-10V DIN",519.51219512195121]
[null,"I/O MODULE 8/8 DIN",909.7560975609756]
[null,"Smart Panel OLED x4 TF-bus",893.4959349593496]
[null,"Touch Panel x4 TF-Bus",446.34146341463418]
[null,"Touch Panel x8 TF-Bus",527.64227642276421]
[null,"GATE MODBUS, DIN, Eth",779.67479674796743]
[null,"GATE ALARM, DIN, Eth",779.67479674796743]
[null,"GATE HTTP, DIN, Eth",804.06504065040656]
[null,"Bus module",80.487804878048777]
[null,"GRENTON 24V BUS WIRE L, TF-Bus",12.2]
[null,"Beacon"," "]
[null,"Zasilacz TDK DC 24V 1,25A, DIN",186.17886178861789]
[null,"Zasilacz TDK DC 24V 1,25A, DIN",186.17886178861789]
[null,"Zasilacz TDK DC 24V 2,5A, DIN",226.82926829268294]
[null,"GRENTON MULTISENSOR IR",893.5]
[null,"I/O MODULE 2/2, FLUSH, TF-Bus, 1-Wire",348.78048780487808]
[null,"ROLLER SHUTTER, FLUSH, TF-Bus, 1-Wire",348.78048780487808]
[null,"DIGITAL IN, WiFi",365.04]
[null,"RELAY X2, WiFi",365.04]
[null,"ROLLER SHUTTER, WiFi",365.04]
[null,"INFIBITY DOOR & WINDOW SENSOR, Z-Wave",153.65853658536585]
[null,"INFIBITY MOTION SENSOR, Z-WAVE",194.3089430894309]
[null,"INFIBITY SIREN ALARM, Z-Wave",169.91869918699186]
[null,"INFIBITY WATER LEAK SENSOR, Z-Wave",194.3089430894309]
[null,"GRENTON 24V BUS WIRE L, TF-Bus",12.195121951219512]
[null,"GRENTON 24V BUS WIRE XL, TF-Bus",15.45]
[null,"Antena L, Z-Wave",88.62]
[null,"Antena S, Z-Wave",64.23]
[null,"GRENTON ELEKTROZAWÓR WODNY 3/4\" 230 V NC",397.5609756097561]
[null,"Głowica Termostatyczna M30 230V NC",69.11]
[null,"Głowica Termostatyczna typu RA 230V NC",397.56]
[null,"Wewnętrzny Czujnik Temperatury, 1-Wire",17.073170731707318]
[null,"Wewnętrzny Czujnik Wilgotności, 0-10 V",356.91056910569108]
[null,"Zewnętrzny Czujnik Temperatury, 1-Wire",39.840000000000003]
[null,"Zewnętrzny Czujnik Wilgotności, 0-10 V",503.2520325203252]

{"sheet":"Dodatkowe","index":2,"n_rows":78,"n_cols":9,"rows_kept":78,"cut":false,"hidden":true,"merged":[[77,1,77,2],[13,1,13,3],[73,1,73,2],[74,1,74,2],[75,1,75,2],[76,1,76,2],[1,1,1,8],[16,1,16,3],[17,1,17,3],[18,1,18,3],[19,1,19,3],[3,1,3,3],[3,4,3,5],[3,7,3,8],[7,1,7,3],[8,1,8,3],[9,1,9,3],[10,1,10,3],[12,1,12,3],[14,1,14,3],[15,1,15,3],[11,1,11,3]]}
[]
[null,"Wybierz dodatkowe urządzenia z oferty Grenton, które zostaną dodane do Podsumowania"]
[]
[null,"Opis",null,null,"Cena netto",null,null,"Ilość  "]
[]
[null,"Moduły Grenton na szynę DIN"]
[]
[null,"CLU Z-Wave, DIN, Eth,TF-Bus",null,null,{"$f":"Waluty!C5","v":1218.69918699187},"zł",null,null,"szt."]
[null,"DIGITAL IN 6+3, DIN, TF-Bus",null,null,{"$f":"Waluty!C6","v":397.5609756097561},"zł",null,null,"szt."]
[null,"RELAY4HP, DIN, TF-Bus",null,null,{"$f":"Waluty!C7","v":478.86178861788619},"zł",null,null,"szt."]
[null,"DIMMER MOSFET, DIN, TF-Bus",null,null,{"$f":"Waluty!C8","v":430.08130081300811},"zł",null,null,"szt."]
[null,"LED RGBW, DIN, TF-Bus",null,null,{"$f":"Waluty!C9","v":430.08130081300811},"zł",null,null,"szt."]
[null,"ROLLER SHUTTER, DIN, TF-Bus",null,null,{"$f":"Waluty!C10","v":348.78048780487808},"zł",null,null,"szt."]
[null,"ROLLER SHUTTER x3, DIN, TF-Bus",null,null,{"$f":"Waluty!C11","v":600.81300813008136},"zł",null,null,"szt."]
[null,"ANALOG IN/OUT, DIN, TF-Bus, 1-Wire",null,null,{"$f":"Waluty!C12","v":519.51219512195121},"zł",null,null,"szt."]
[null,"I/O MODULE 8/8, DIN, TF-Bus",null,null,{"$f":"Waluty!C13","v":909.7560975609756},"zł",null,null,"szt."]
[null,"GATE MODBUS, DIN, Eth",null,null,{"$f":"Waluty!C17","v":779.67479674796743},"zł",null,null,"szt."]
[null,"GATE ALARM, DIN, Eth",null,null,{"$f":"Waluty!C18","v":779.67479674796743},"zł",null,null,"szt."]
[null,"GATE HTTP, DIN, Eth",null,null,{"$f":"Waluty!C19","v":804.06504065040656},"zł",null,null,"szt."]
[null,"BUS MODULE, DIN, TF-Bus",null,null,{"$f":"Waluty!C20","v":80.487804878048777},"zł",null,null,"szt."]
[]
[null,"Panele dotykowe Grenton"]
[]
[null,"SMART PANEL 4B, OLED, TF-Bus",null,null,{"$f":"Waluty!C14","v":893.4959349593496},"zł",null,null,"szt."]
[null,"TOUCH PANEL 4B, TF-Bus",null,null,{"$f":"Waluty!C15","v":446.34146341463418},"zł",null,null,"szt."]
[null,"TOUCH PANEL 8B, TF-Bus",null,null,{"$f":"Waluty!C16","v":527.64227642276421},"zł",null,null,"szt."]
[]
[null,"Moduły Grenton przewodowe, podtynkowe"]
[]
[null,"I/O MODULE 2/2, FLUSH, TF-Bus, 1-Wire",null,null,{"$f":"Waluty!C27","v":348.78048780487808},"zł",null,null,"szt."]
[null,"ROLLER SHUTTER, FLUSH, TF-Bus, 1-Wire",null,null,{"$f":"Waluty!C28","v":348.78048780487808},"zł",null,null,"szt."]
[]
[null,"Moduły Grenton bezprzewodowe Z-Wave"]
[]
[null,"DIGITAL IN, Z-Wave",null,null,{"$f":"Waluty!C29","v":365.04},"zł",null,null,"szt."]
[null,"RELAY X2, WiFi",null,null,{"$f":"Waluty!C30","v":365.04},"zł",null,null,"szt."]
[null,"ROLLER SHUTTER, WiFi",null,null,{"$f":"Waluty!C31","v":365.04},"zł",null,null,"szt."]
[]
[null,"Urządzenia Infibity Z-Wave"]
[]
[null,"INFIBITY DOOR & WINDOW SENSOR, Z-Wave",null,null,{"$f":"Waluty!C32","v":153.65853658536585},"zł",null,null,"szt."]
[null,"INFIBITY MOTION SENSOR, Z-WAVE",null,null,{"$f":"Waluty!C33","v":194.3089430894309},"zł",null,null,"szt."]
[null,"INFIBITY SIREN ALARM, Z-Wave",null,null,{"$f":"Waluty!C34","v":169.91869918699186},"zł",null,null,"szt."]
[null,"INFIBITY WATER LEAK SENSOR, Z-Wave",null,null,{"$f":"Waluty!C35","v":194.3089430894309},"zł",null,null,"szt."]
[null,"IR Extender ZXT-310",null,null,{"$f":"Waluty!C26","v":893.5},"zł",null,null,"szt."]
[]
[null,"Zasilacze"]
[]
[null,"Zasilacz TDK DC 24V 1,5A, DIN",null,null,{"$f":"Waluty!C24","v":186.17886178861789},"zł",null,null,"szt."]
[null,"Zasilacz TDK DC 24V 2,5A, DIN",null,null,{"$f":"Waluty!C25","v":226.82926829268294},"zł",null,null,"szt."]
[]
[null,"Przewody magistralne"]
[]
[null,"GRENTON 24V BUS WIRE L, TF-Bus",null,null,{"$f":"Waluty!C36","v":12.195121951219512},"zł",null,null,"szt."]
[null,"GRENTON 24V BUS WIRE XL, TF-Bus",null,null,{"$f":"Waluty!C37","v":15.45},"zł",null,null,"szt."]
[]
[null,"Antena Z-Wave"]
[]
[null,"Antena L, Z-Wave",null,null,{"$f":"Waluty!C38","v":88.62},"zł",null,null,"szt."]
[null,"Antena S, Z-Wave",null,null,{"$f":"Waluty!C39","v":64.23},"zł",null,null,"szt."]
[]
[null,"Komponenty"]
[]
[null,"Greton Elektrozawór Wodny 3/4\" 230 V NC",null,null,{"$f":"Waluty!C40","v":397.5609756097561},"zł",null,null,"szt."]
[null,"Głowica Termostatyczna M30 230V NC",null,null,{"$f":"Waluty!C41","v":69.11},"zł",null,null,"szt."]
[null,"Głowica Termostatyczna typu RA 230V NC",null,null,{"$f":"Waluty!C42","v":397.56},"zł",null,null,"szt."]
[null,"Wewnętrzny Czujnik Temperatury, 1-Wire",null,null,{"$f":"Waluty!C43","v":17.073170731707318},"zł",null,null,"szt."]
[null,"Wewnętrzny Czujnik Wilgotności, 0-10 V",null,null,{"$f":"Waluty!C44","v":356.91056910569108},"zł",null,null,"szt."]
[null,"Zewnętrzny Czujnik Temperatury, 1-Wire",null,null,{"$f":"Waluty!C45","v":39.840000000000003},"zł",null,null,"szt."]
[null,"Zewnętrzny Czujnik Wilgotności, 0-10 V",null,null,{"$f":"Waluty!C46","v":503.2520325203252},"zł",null,null,"szt."]
[]
[null,"Własne"]
[]
[null,null,null,null,null,"zł",null,null,"szt."]
[null,null,null,null,null,"zł",null,null,"szt."]
[null,null,null,null,null,"zł",null,null,"szt."]
[null,null,null,null,null,"zł",null,null,"szt."]
[null,null,null,null,null,"zł",null,null,"szt."]

{"sheet":"Obliczenia","index":3,"n_rows":94,"n_cols":26,"rows_kept":94,"cut":false,"hidden":true,"merged":[[73,14,73,16],[0,0,0,2],[0,4,0,13],[73,9,73,10],[73,11,73,12],[73,13,74,13],[73,4,73,6],[73,7,73,8]]}
[null,null,null,null,"Ilość sygnałów - jdnst.",null,null,null,null,null,null,null,null,null,null,null,null,null,null,null,null,null,"Opis"]
["L.p.",null,"Urządzenie","Typ sygn. :","AI","DI","DO","AO","Temp.","Rolety","LED","DIM","TP x8","TP x4","SP x4","MODB","ALAR","HTTP","OUT 8/8","IN 8/8","MS",null,"Uszczegółowienie sygnałów"]
["1.",null,"Oświetlenie","-","-","-","-","-","-","-","-","-","-","-",null,null,null,null,null,null,null,null,"-"]
[{"$f":"A3","v":"1."},1,"Oprawy","Ster. / przycisk",null,null,null,null,null,null,{"$f":"'Formularz wyceny'!G22+ROUNDUP('Formularz wyceny'!G23/4,0)","v":0},{"$f":"'Formularz wyceny'!G21","v":0},null,null,null,null,null,null,{"$f":"'Formularz wyceny'!G20","v":0}]
[]
["2.",null,"Sterowanie"]
[{"$f":"A6","v":"2."},1,"Panel dotykowy","Sterowanie",null,null,null,null,null,null,null,null,{"$f":"'Formularz wyceny'!G33","v":0},{"$f":"'Formularz wyceny'!G32","v":0},{"$f":"'Formularz wyceny'!G31","v":0}]
[{"$f":"A7","v":"2."},2,"Łącznik podwójny","Sterowanie",null,{"$f":"'Formularz wyceny'!G29*2","v":0}]
[{"$f":"A8","v":"2."},3,"Łącznik pojedyńczy","Sterowanie",null,{"$f":"'Formularz wyceny'!G28","v":0}]
[{"$f":"A9","v":"2."},3,"Łącznik rolet","Sterowanie",null,{"$f":"'Formularz wyceny'!G30*2","v":0}]
["3."]
[{"$f":"A11","v":"3."},1,"Zasilanie"]
[{"$f":"A12","v":"3."},2,"Gniazda wtykowe","Sterowanie",null,null,{"$f":"'Formularz wyceny'!G38","v":0}]
[null,null,"Pozostałe urządzenia",null,null,null,{"$f":"'Formularz wyceny'!G39+'Formularz wyceny'!G40","v":0}]
[]
[null,null,"Ogrzewanie/Klimat"]
[null,null,"Grzejniki/zawory",null,null,null,null,null,null,null,null,null,null,null,null,null,null,null,{"$f":"'Formularz wyceny'!G45","v":0}]
[null,null,"Czujniki temperatury",null,null,null,null,null,{"$f":"'Formularz wyceny'!G46","v":0}]
[null,null,"Piec",null,null,null,{"$f":"IF('Formularz wyceny'!G47=\"TAK\",1,0)","v":0}]
[null,null,"Centrala wentylacyjna",null,null,null,null,null,null,null,null,null,null,null,null,{"$f":"IF('Formularz wyceny'!G54=\"TAK\",1,0)","v":0}]
[null,null,"Rekuperator",null,null,null,null,null,null,null,null,null,null,null,null,{"$f":"IF('Formularz wyceny'!G54=\"TAK\",1,0)","v":0}]
[null,null,"Pompa ciepła",null,null,null,null,null,null,null,null,null,null,null,null,{"$f":"IF('Formularz wyceny'!G55=\"TAK\",1,0)","v":0}]
[null,null,"Klimatyzator zaawans.",null,null,null,null,null,null,null,null,null,null,null,null,{"$f":"'Formularz wyceny'!G58","v":0}]
[]
["6.",null,"Rolety/Markizy"]
[{"$f":"A25","v":"6."},1,"Rolety",null,null,null,null,null,null,{"$f":"'Formularz wyceny'!G63","v":0}]
[{"$f":"A26","v":"6."},2,"Żaluzje",null,null,null,null,null,null,{"$f":"'Formularz wyceny'!G64","v":0}]
[{"$f":"A27","v":"6."},3,"Markizy",null,null,null,null,null,null,{"$f":"'Formularz wyceny'!G65","v":0}]
[null,null,"Karnisze",null,null,null,null,null,null,{"$f":"'Formularz wyceny'!G66","v":0}]
[]
["4.",null,"Czujniki"]
[null,null,"Ruchu",null,null,{"$f":"'Formularz wyceny'!G72","v":0}]
[{"$f":"A31","v":"4."},1,"Gazu",null,null,{"$f":"'Formularz wyceny'!G73","v":0}]
[{"$f":"A33","v":"4."},2,"Gazu usypiającego",null,null,{"$f":"'Formularz wyceny'!G74","v":0}]
[null,null,"Dymu",null,null,{"$f":"'Formularz wyceny'!G75","v":0}]
[null,null,"Zalania / poziomu wody",null,null,{"$f":"'Formularz wyceny'!G76","v":0}]
[null,null,"Tlenku węgla / Czadu",null,null,{"$f":"'Formularz wyceny'!G77","v":0}]
[null,null,"Dwutlenku węgla",null,null,{"$f":"'Formularz wyceny'!G78","v":0}]
[null,null,"Jakości powietrza",null,null,{"$f":"'Formularz wyceny'!G79","v":0}]
[null,null,"Otwarcia okien/drzwi",null,null,{"$f":"'Formularz wyceny'!G80","v":0}]
[null,null,"Zmierzchu",null,null,{"$f":"'Formularz wyceny'!G81","v":0}]
[null,null,"Deszczu",null,null,{"$f":"'Formularz wyceny'!G82","v":0}]
[null,null,{"$f":"\"Niewymienione: \"&'Formularz wyceny'!B85","v":"Niewymienione: "},null,null,{"$f":"'Formularz wyceny'!G85","v":0}]
[null,null,{"$f":"\"Niewymienione: \"&'Formularz wyceny'!B86","v":"Niewymienione: "},null,null,{"$f":"'Formularz wyceny'!G86","v":0}]
[null,null,{"$f":"\"Niewymienione: \"&'Formularz wyceny'!B87","v":"Niewymienione: "},null,null,{"$f":"'Formularz wyceny'!G87","v":0}]
[]
[null,null,"Wilgotności",null,{"$f":"'Formularz wyceny'!G90","v":0}]
[null,null,"Nawodnienia",null,{"$f":"'Formularz wyceny'!G91","v":0}]
[null,null,"Czujnik wiatru",null,{"$f":"'Formularz wyceny'!G92","v":0}]
[null,null,"Natężenia światła",null,{"$f":"'Formularz wyceny'!G93","v":0}]
[null,null,"Temperatura zewnętrzna",null,{"$f":"'Formularz wyceny'!G94","v":0}]
[null,null,"Poziom wody",null,{"$f":"'Formularz wyceny'!G95","v":0}]
[null,null,"Odległości",null,{"$f":"'Formularz wyceny'!G96","v":0}]
[null,null,{"$f":"\"Niewymienione: \"&'Formularz wyceny'!B99","v":"Niewymienione: "},null,{"$f":"'Formularz wyceny'!G99","v":0}]
[null,null,{"$f":"\"Niewymienione: \"&'Formularz wyceny'!B100","v":"Niewymienione: "},null,{"$f":"'Formularz wyceny'!G100","v":0}]
[null,null,{"$f":"\"Niewymienione: \"&'Formularz wyceny'!B101","v":"Niewymienione: "},null,{"$f":"'Formularz wyceny'!G101","v":0}]
[{"$f":"#REF!","v":{"$error":"#REF!"}},5]
["7.",null,"Bramy/furtki"]
[{"$f":"A58","v":"7."},1,"Brama wjazdowa",null,null,{"$f":"'Formularz wyceny'!G106","v":0},{"$f":"'Formularz wyceny'!G106","v":0}]
[{"$f":"A59","v":"7."},2,"Brama garażowa",null,null,{"$f":"G60","v":0},{"$f":"'Formularz wyceny'!G107","v":0}]
[{"$f":"A60","v":"7."},3,"Furtka",null,null,null,{"$f":"'Formularz wyceny'!G108","v":0}]
[null,null,"Elektrozaczep",null,null,null,{"$f":"'Formularz wyceny'!G109","v":0}]
["8."]
[null,null,"Zaawansowane systemy"]
[{"$f":"A63","v":"8."},1,"Alarm",null,null,{"$f":"IF('Formularz wyceny'!G113=\"PROSTA\",1,0)","v":0},{"$f":"IF('Formularz wyceny'!G113=\"PROSTA\",1,0)","v":0},null,null,null,null,null,null,null,null,null,{"$f":"IF('Formularz wyceny'!G113=\"PEŁNA\",1,0)","v":0}]
[{"$f":"#REF!","v":{"$error":"#REF!"}},1,"Kontrola dostępu",null,null,{"$f":"IF('Formularz wyceny'!G114=\"TAK\",1,0)","v":0}]
[{"$f":"#REF!","v":{"$error":"#REF!"}},1,"Usługi sieciowe i multimedia",null,null,null,null,null,null,null,null,null,null,null,null,null,null,{"$f":"IF('Formularz wyceny'!G115=\"TAK\",1,IF('Formularz wyceny'!G116=\"TAK\",1,0))","v":0}]
[{"$f":"#REF!","v":{"$error":"#REF!"}},5,"MULTISENSOR",null,null,null,null,null,null,null,null,null,null,null,null,null,null,null,null,null,{"$f":"'Formularz wyceny'!G117","v":0}]
[]
[]
["L.p.",null,"Urządzenie","Typ sygn. :","AI","DI","DO","AO","Temp.","Rolety","LED","DIM","TP x8","TP x4","SP","G_M","G_A","G_HTTP","DO 8/8","IN 8/8","MS",null,"Uszczegółowienie sygnałów"]
["101.",null,"n/d","Podsumowanie",{"$f":"SUM(E3:E68)","v":0},{"$f":"SUM(F3:F68)","v":0},0,0,0,0,0,0,0,0,0,0,0,0,0,0,0,null,"-"]
[]
[null,null,null,null,"Ilośc pkt.",null,null,"Rezerwa 1.",null,"Rezerwa 2.",null,"Rezerwa 3.",null,"Ilość mod","Zap. Prąd. 24VDC"]
[null,null,"Rodzaj modułu","Opis","1.","2.","3.","%","Ilość","%","Ilość","%","Ilość",null,"A jedn.","A suma"]
[null,null,"CLU",null,"-","-","-","-","-",null,null,null,null,{"$f":"ROUNDUP(SUM(N77:N91)/48,0)","v":0},0.1,{"$f":"N76*O76","v":0}]
[null,null,"DIGITAL IN x6",null,{"$f":"F72","v":0},"-","-",0,{"$f":"ROUNDUP((E77*H77/100)+E77,0)","v":0},null,null,null,null,{"$f":"IF(N84=0,ROUNDUP((E77/6),0),IF((E77-N84*8)>0,ROUNDUP((E77-N84*8)/6,0),0))","v":0},4.7000000000000002E-3,0]
[null,null,"DIGITAL RELAY x4",null,{"$f":"G72","v":0},"-","-",0,0,null,null,null,null,{"$f":"ROUNDUP(E78/4,0)","v":0},0.1,0]
[null,null,"DIMMER x1",null,{"$f":"L72","v":0},"-","-",0,0,null,null,null,null,{"$f":"ROUNDUP(I79/1,0)","v":0},6.7000000000000004E-2,0]
[null,null,"LED RGBW 1x",null,{"$f":"K72","v":0},"-","-",0,0,null,null,null,null,{"$f":"ROUNDUP(I80/1,0)","v":0},0.02,0]
[null,null,"SHUTTER x1",null,{"$f":"J72","v":0},"-","-",0,{"$f":"E81-(I82*3)","v":0},null,null,null,null,{"$f":"ROUNDUP(I81/1,0)","v":0},0.05,0]
[null,null,"SHUTTER x3",null,{"$f":"J72","v":0},null,null,{"$f":"MROUND(E82,3)","v":0},{"$f":"IF(E82/3=INT(E82/3),E82/3,INT(E82/3))","v":0},null,null,null,null,{"$f":"ROUNDUP(I82/1,0)","v":0},0.1,0]
[null,null,"ANALOG AIx4, AOx4, TEMP",null,{"$f":"E72-E85-E86-E87","v":0},{"$f":"H72","v":0},{"$f":"I72","v":0},0,{"$f":"ROUNDUP((E83*H83/100)+E83,0)","v":0},0,{"$f":"ROUNDUP((F83*J83/100)+F83,0)","v":0},0,{"$f":"ROUNDUP((G83*L83/100)+G83,0)","v":0},{"$f":"IF(AND(ROUNDUP(I83/4,0)>=ROUNDUP(K83/4,0),ROUNDUP(I83/4,0)>=ROUNDUP(M83/16,0)),ROUNDUP(I83/4,0),IF(AND(ROUNDUP(K83/4,0)>=ROUNDUP(M83/16,0),ROUNDUP(K83/4,0)>=ROUNDUP(I83/4,0)),ROUNDUP(K83/4,0),IF(AND(ROUNDUP(M83/16,0)>=ROUNDUP(I83/4,0),ROUNDUP(M83/16,0)>=ROUNDUP(K83/4,0)),ROUNDUP(M83/16,0),IF(AND(ROUNDUP(I83/4,0)=ROUNDUP(K83/4,0),ROUNDUP(K83/4,0)=ROUNDUP(M83/16,0)),ROUNDUP(I83/4,0),\"Błąd\"))))","v":0},8.3999999999999995E-3,0]
[null,null,"I/O 8/8, OUT, IN",null,{"$f":"S72","v":0},{"$f":"T72","v":0},null,0,0,null,null,null,null,{"$f":"ROUNDUP(E84/8,0)","v":0},7.4999999999999997E-2,0]
[null,null,"SP x4",null,{"$f":"O72","v":0},"-","-",0,0,null,null,null,null,{"$f":"O72","v":0},1.7000000000000001E-2,0]
[null,null,"TPx4",null,{"$f":"N72","v":0},"-","-",0,0,null,null,null,null,{"$f":"N72","v":0},7.0000000000000001E-3,0]
[null,null,"TPx8",null,{"$f":"M72","v":0},"-","-",0,0,null,null,null,null,{"$f":"M72","v":0},7.0000000000000001E-3,0]
[null,null,"GATE HTTP",null,{"$f":"R72","v":0},null,null,0,0,null,null,null,null,{"$f":"E88","v":0},0.15,0]
[null,null,"GATE ALARM",null,{"$f":"Q72","v":0},"-","-",0,0,null,null,null,null,{"$f":"E89","v":0},0.15,{"$f":"N89*O89","v":0}]
[null,null,"GATE MODBUS",null,{"$f":"IF(SUM(P3:P68)>0,1,0)","v":0},"-","-",0,0,null,null,null,null,{"$f":"E90","v":0},0.15,{"$f":"N90*O90","v":0}]
[null,null,"MULTISENSOR",null,{"$f":"U72","v":0},null,null,0,0,null,null,null,null,{"$f":"E91","v":0},1.4E-2,{"$f":"N91*O91","v":0}]
[null,null,null,null,null,null,null,null,null,null,null,null,null,null,"SUMA:",{"$f":"SUM(P76:P91)","v":0},null,null,{"$f":"IF(P93=0,0,P93-0.000001)","v":0},null,null,null,null,{"$f":"IF(P93=0,0,P93-0.000001)","v":0},{"$f":"IF(X92=0,0,IF(ISEVEN(QUOTIENT(X92,3)),1,0))","v":0},{"$f":"IF(ISEVEN(QUOTIENT(X92,3)),QUOTIENT(X92,6),QUOTIENT(X92,6)+1)","v":0}]
[null,null,null,null,null,null,null,null,null,null,null,null,null,null,"120%S",{"$f":"P92*1.2","v":0}]
[null,null,null,null,null,null,null,null,null,null,null,null,null,null,"Oblicz",{"$f":"IF(P93=0,0,P93-0.000001)","v":0},null,null,null,null,null,null,null,{"$f":"QUOTIENT(P94,1)+1","v":1}]

{"sheet":"Podsumowanie","index":4,"n_rows":105,"n_cols":12,"rows_kept":105,"cut":false,"hidden":false,"merged":[[60,1,60,3],[61,1,61,3],[35,0,35,10],[45,0,45,10],[47,1,47,3],[47,4,47,5],[47,6,47,7],[47,8,47,9],[44,0,44,10],[30,1,30,3],[15,1,15,3],[16,1,16,3],[17,1,17,3],[18,1,18,3],[19,1,19,3],[29,1,29,3],[23,1,23,3],[27,1,27,3],[28,1,28,3],[25,1,25,3],[107,1,107,8],[26,1,26,3],[20,1,20,3],[14,8,14,9],[103,1,103,8],[99,1,99,8],[31,1,31,3],[39,0,39,5],[39,6,39,7],[41,0,41,9],[96,1,96,8],[38,6,38,7],[33,1,33,3],[91,9,91,10],[32,1,32,3],[14,4,14,5],[10,0,10,2],[12,1,12,9],[21,1,21,3],[10,4,10,8],[24,1,24,3],[22,1,22,3],[11,0,11,9],[14,6,14,7],[14,1,14,3],[13,0,13,9],[4,0,4,10],[0,0,3,10],[9,4,9,8],[6,0,6,2],[7,0,7,2],[8,0,8,2],[9,0,9,2],[8,4,8,8],[5,0,5,9],[6,4,6,8],[7,4,7,8],[96,9,96,10],[95,9,95,10],[94,9,94,10],[93,9,93,10],[92,9,92,10],[90,9,90,10],[89,9,89,10],[88,9,88,10],[62,1,62,3],[68,1,68,3],[69,1,69,3],[63,1,63,3],[64,1,64,3],[65,1,65,3],[66,1,66,3],[67,1,67,3],[74,6,74,7],[75,6,75,7],[70,1,70,3],[71,1,71,3],[72,1,72,3],[97,1,97,8],[104,1,104,8],[78,0,80,10],[82,0,82,10],[48,1,48,3],[49,1,49,3],[50,1,50,3],[51,1,51,3],[52,1,52,3],[53,1,53,3],[54,1,54,3],[55,1,55,3],[56,1,56,3],[57,1,57,3],[58,1,58,3],[59,1,59,3]]}
[]
[]
[]
[]
["System automatyki budynkowej"]
[]
["imię i nazwisko:",null,null,null,{"$f":"'Formularz wyceny'!D9&\" \"&'Formularz wyceny'!D10","v":" "}]
["e-mail:",null,null,null,{"$f":"'Formularz wyceny'!D11&\" \"","v":" "}]
["telefon:",null,null,null,{"$f":"'Formularz wyceny'!D12&\" \"","v":" "}]
["województwo:",null,null,null,{"$f":"'Formularz wyceny'!D13&\" \"","v":" "}]
["miasto:",null,null,null,{"$f":"'Formularz wyceny'!D14&\" \"","v":" "}]
[]
[null,"Podsumowanie"]
[]
[null,"Opis",null,null,"Ilość  ",null,"Cena netto/szt.",null,"Cena netto"]
[null,"CLU Z-Wave, DIN, Eth,TF-Bus",null,null,{"$f":"IF(Obliczenia!N76=0,IF(OR(Dodatkowe!H8=0,Dodatkowe!H8=\"\"),\"\",SUM(Obliczenia!N76,Dodatkowe!H8)),SUM(Obliczenia!N76,Dodatkowe!H8))","v":""},"szt.",{"$f":"IF('Formularz wyceny'!$D$15=\"PLN\",Waluty!C5,)","v":1218.69918699187},{"$f":"IF('Formularz wyceny'!$D$15=\"PLN\",Waluty!$C$4,IF('Formularz wyceny'!$D$15=\"EUR\",Waluty!$D$4,IF('Formularz wyceny'!$D$15=\"DKK\",Waluty!$G$4,IF('Formularz wyceny'!$D$15=\"CHF\",Waluty!$E$4,IF('Formularz wyceny'!$D$15=\"SEK\",Waluty!$F$4,Waluty!$C$4)))))","v":"zł"},{"$f":"IF(E16=\"\",\"\",E16*G16)","v":""},{"$f":"IF('Formularz wyceny'!$D$15=\"PLN\",Waluty!$C$4,IF('Formularz wyceny'!$D$15=\"EUR\",Waluty!$D$4,IF('Formularz wyceny'!$D$15=\"DKK\",Waluty!$G$4,IF('Formularz wyceny'!$D$15=\"CHF\",Waluty!$E$4,IF('Formularz wyceny'!$D$15=\"SEK\",Waluty!$F$4,Waluty!$C$4)))))","v":"zł"}]
[null,"DIGITAL IN 6+3, DIN, TF-Bus",null,null,{"$f":"IF(Obliczenia!N77=0,IF(OR(Dodatkowe!H9=0,Dodatkowe!H9=\"\"),\"\",SUM(Obliczenia!N77,Dodatkowe!H9)),SUM(Obliczenia!N77,Dodatkowe!H9))","v":""},"szt.",{"$f":"IF('Formularz wyceny'!$D$15=\"PLN\",Waluty!C6,)","v":397.5609756097561},{"$f":"IF('Formularz wyceny'!$D$15=\"PLN\",Waluty!$C$4,IF('Formularz wyceny'!$D$15=\"EUR\",Waluty!$D$4,IF('Formularz wyceny'!$D$15=\"DKK\",Waluty!$G$4,IF('Formularz wyceny'!$D$15=\"CHF\",Waluty!$E$4,IF('Formularz wyceny'!$D$15=\"SEK\",Waluty!$F$4,Waluty!$C$4)))))","v":"zł"},{"$f":"IF(E17=\"\",\"\",E17*G17)","v":""},{"$f":"IF('Formularz wyceny'!$D$15=\"PLN\",Waluty!$C$4,IF('Formularz wyceny'!$D$15=\"EUR\",Waluty!$D$4,IF('Formularz wyceny'!$D$15=\"DKK\",Waluty!$G$4,IF('Formularz wyceny'!$D$15=\"CHF\",Waluty!$E$4,IF('Formularz wyceny'!$D$15=\"SEK\",Waluty!$F$4,Waluty!$C$4)))))","v":"zł"}]
[null,"RELAY 4HP, DIN, TF-Bus",null,null,{"$f":"IF(Obliczenia!N78=0,IF(OR(Dodatkowe!H10=0,Dodatkowe!H10=\"\"),\"\",SUM(Obliczenia!N78,Dodatkowe!H10)),SUM(Obliczenia!N78,Dodatkowe!H10))","v":""},"szt.",{"$f":"IF('Formularz wyceny'!$D$15=\"PLN\",Waluty!C7,)","v":478.86178861788619},{"$f":"IF('Formularz wyceny'!$D$15=\"PLN\",Waluty!$C$4,IF('Formularz wyceny'!$D$15=\"EUR\",Waluty!$D$4,IF('Formularz wyceny'!$D$15=\"DKK\",Waluty!$G$4,IF('Formularz wyceny'!$D$15=\"CHF\",Waluty!$E$4,IF('Formularz wyceny'!$D$15=\"SEK\",Waluty!$F$4,Waluty!$C$4)))))","v":"zł"},"",{"$f":"IF('Formularz wyceny'!$D$15=\"PLN\",Waluty!$C$4,IF('Formularz wyceny'!$D$15=\"EUR\",Waluty!$D$4,IF('Formularz wyceny'!$D$15=\"DKK\",Waluty!$G$4,IF('Formularz wyceny'!$D$15=\"CHF\",Waluty!$E$4,IF('Formularz wyceny'!$D$15=\"SEK\",Waluty!$F$4,Waluty!$C$4)))))","v":"zł"}]
[null,"DIMMER MOSFET, DIN, TF-Bus",null,null,{"$f":"IF(Obliczenia!N79=0,IF(OR(Dodatkowe!H11=0,Dodatkowe!H11=\"\"),\"\",SUM(Obliczenia!N79,Dodatkowe!H11)),SUM(Obliczenia!N79,Dodatkowe!H11))","v":""},"szt.",{"$f":"IF('Formularz wyceny'!$D$15=\"PLN\",Waluty!C8)","v":430.08130081300811},{"$f":"IF('Formularz wyceny'!$D$15=\"PLN\",Waluty!$C$4,IF('Formularz wyceny'!$D$15=\"EUR\",Waluty!$D$4,IF('Formularz wyceny'!$D$15=\"DKK\",Waluty!$G$4,IF('Formularz wyceny'!$D$15=\"CHF\",Waluty!$E$4,IF('Formularz wyceny'!$D$15=\"SEK\",Waluty!$F$4,Waluty!$C$4)))))","v":"zł"},"",{"$f":"IF('Formularz wyceny'!$D$15=\"PLN\",Waluty!$C$4,IF('Formularz wyceny'!$D$15=\"EUR\",Waluty!$D$4,IF('Formularz wyceny'!$D$15=\"DKK\",Waluty!$G$4,IF('Formularz wyceny'!$D$15=\"CHF\",Waluty!$E$4,IF('Formularz wyceny'!$D$15=\"SEK\",Waluty!$F$4,Waluty!$C$4)))))","v":"zł"}]
[null,"LED RGBW, DIN, TF-Bus",null,null,{"$f":"IF(Obliczenia!N80=0,IF(OR(Dodatkowe!H12=0,Dodatkowe!H12=\"\"),\"\",SUM(Obliczenia!N80,Dodatkowe!H12)),SUM(Obliczenia!N80,Dodatkowe!H12))","v":""},"szt.",{"$f":"IF('Formularz wyceny'!$D$15=\"PLN\",Waluty!C9,)","v":430.08130081300811},{"$f":"IF('Formularz wyceny'!$D$15=\"PLN\",Waluty!$C$4,IF('Formularz wyceny'!$D$15=\"EUR\",Waluty!$D$4,IF('Formularz wyceny'!$D$15=\"DKK\",Waluty!$G$4,IF('Formularz wyceny'!$D$15=\"CHF\",Waluty!$E$4,IF('Formularz wyceny'!$D$15=\"SEK\",Waluty!$F$4,Waluty!$C$4)))))","v":"zł"},"",{"$f":"IF('Formularz wyceny'!$D$15=\"PLN\",Waluty!$C$4,IF('Formularz wyceny'!$D$15=\"EUR\",Waluty!$D$4,IF('Formularz wyceny'!$D$15=\"DKK\",Waluty!$G$4,IF('Formularz wyceny'!$D$15=\"CHF\",Waluty!$E$4,IF('Formularz wyceny'!$D$15=\"SEK\",Waluty!$F$4,Waluty!$C$4)))))","v":"zł"}]
[null,"ROLLER SHUTTER , DIN, TF-Bus",null,null,{"$f":"IF(Obliczenia!N81=0,IF(OR(Dodatkowe!H13=0,Dodatkowe!H13=\"\"),\"\",SUM(Obliczenia!N81,Dodatkowe!H13)),SUM(Obliczenia!N81,Dodatkowe!H13))","v":""},"szt.",{"$f":"IF('Formularz wyceny'!$D$15=\"PLN\",Waluty!C10,)","v":348.78048780487808},{"$f":"IF('Formularz wyceny'!$D$15=\"PLN\",Waluty!$C$4,IF('Formularz wyceny'!$D$15=\"EUR\",Waluty!$D$4,IF('Formularz wyceny'!$D$15=\"DKK\",Waluty!$G$4,IF('Formularz wyceny'!$D$15=\"CHF\",Waluty!$E$4,IF('Formularz wyceny'!$D$15=\"SEK\",Waluty!$F$4,Waluty!$C$4)))))","v":"zł"},"",{"$f":"IF('Formularz wyceny'!$D$15=\"PLN\",Waluty!$C$4,IF('Formularz wyceny'!$D$15=\"EUR\",Waluty!$D$4,IF('Formularz wyceny'!$D$15=\"DKK\",Waluty!$G$4,IF('Formularz wyceny'!$D$15=\"CHF\",Waluty!$E$4,IF('Formularz wyceny'!$D$15=\"SEK\",Waluty!$F$4,Waluty!$C$4)))))","v":"zł"}]
[null,"ROLLER SHUTTER x3, DIN, TF-Bus",null,null,{"$f":"IF(Obliczenia!N82=0,IF(OR(Dodatkowe!H14=0,Dodatkowe!H14=\"\"),\"\",SUM(Obliczenia!N82,Dodatkowe!H14)),SUM(Obliczenia!N82,Dodatkowe!H14))","v":""},"szt.",{"$f":"IF('Formularz wyceny'!$D$15=\"PLN\",Waluty!C11,)","v":600.81300813008136},{"$f":"IF('Formularz wyceny'!$D$15=\"PLN\",Waluty!$C$4,IF('Formularz wyceny'!$D$15=\"EUR\",Waluty!$D$4,IF('Formularz wyceny'!$D$15=\"DKK\",Waluty!$G$4,IF('Formularz wyceny'!$D$15=\"CHF\",Waluty!$E$4,IF('Formularz wyceny'!$D$15=\"SEK\",Waluty!$F$4,Waluty!$C$4)))))","v":"zł"},{"$f":"IF(E22=\"\",\"\",E22*G22)","v":""},{"$f":"IF('Formularz wyceny'!$D$15=\"PLN\",Waluty!$C$4,IF('Formularz wyceny'!$D$15=\"EUR\",Waluty!$D$4,IF('Formularz wyceny'!$D$15=\"DKK\",Waluty!$G$4,IF('Formularz wyceny'!$D$15=\"CHF\",Waluty!$E$4,IF('Formularz wyceny'!$D$15=\"SEK\",Waluty!$F$4,Waluty!$C$4)))))","v":"zł"}]
[null,"ANALOG IN/OUT, DIN, TF-Bus, 1-Wire",null,null,{"$f":"IF(Obliczenia!N83=0,IF(OR(Dodatkowe!H15=0,Dodatkowe!H15=\"\"),\"\",SUM(Obliczenia!N83,Dodatkowe!H15)),SUM(Obliczenia!N83,Dodatkowe!H15))","v":""},"szt.",{"$f":"IF('Formularz wyceny'!$D$15=\"PLN\",Waluty!C12,)","v":519.51219512195121},{"$f":"IF('Formularz wyceny'!$D$15=\"PLN\",Waluty!$C$4,IF('Formularz wyceny'!$D$15=\"EUR\",Waluty!$D$4,IF('Formularz wyceny'!$D$15=\"DKK\",Waluty!$G$4,IF('Formularz wyceny'!$D$15=\"CHF\",Waluty!$E$4,IF('Formularz wyceny'!$D$15=\"SEK\",Waluty!$F$4,Waluty!$C$4)))))","v":"zł"},"",{"$f":"IF('Formularz wyceny'!$D$15=\"PLN\",Waluty!$C$4,IF('Formularz wyceny'!$D$15=\"EUR\",Waluty!$D$4,IF('Formularz wyceny'!$D$15=\"DKK\",Waluty!$G$4,IF('Formularz wyceny'!$D$15=\"CHF\",Waluty!$E$4,IF('Formularz wyceny'!$D$15=\"SEK\",Waluty!$F$4,Waluty!$C$4)))))","v":"zł"}]
[null,"I/O MODULE 8/8, DIN, TF-Bus",null,null,{"$f":"IF(Obliczenia!N84=0,IF(OR(Dodatkowe!H16=0,Dodatkowe!H16=\"\"),\"\",SUM(Obliczenia!N84,Dodatkowe!H16)),SUM(Obliczenia!N84,Dodatkowe!H16))","v":""},"szt.",{"$f":"IF('Formularz wyceny'!$D$15=\"PLN\",Waluty!C13,)","v":909.7560975609756},{"$f":"IF('Formularz wyceny'!$D$15=\"PLN\",Waluty!$C$4,IF('Formularz wyceny'!$D$15=\"EUR\",Waluty!$D$4,IF('Formularz wyceny'!$D$15=\"DKK\",Waluty!$G$4,IF('Formularz wyceny'!$D$15=\"CHF\",Waluty!$E$4,IF('Formularz wyceny'!$D$15=\"SEK\",Waluty!$F$4,Waluty!$C$4)))))","v":"zł"},"",{"$f":"IF('Formularz wyceny'!$D$15=\"PLN\",Waluty!$C$4,IF('Formularz wyceny'!$D$15=\"EUR\",Waluty!$D$4,IF('Formularz wyceny'!$D$15=\"DKK\",Waluty!$G$4,IF('Formularz wyceny'!$D$15=\"CHF\",Waluty!$E$4,IF('Formularz wyceny'!$D$15=\"SEK\",Waluty!$F$4,Waluty!$C$4)))))","v":"zł"}]
[null,"SMART PANEL 4B, OLED, TF-Bus",null,null,{"$f":"IF(Obliczenia!N85=0,IF(OR(Dodatkowe!H24=0,Dodatkowe!H24=\"\"),\"\",SUM(Obliczenia!N85,Dodatkowe!H24)),SUM(Obliczenia!N85,Dodatkowe!H24))","v":""},"szt.",{"$f":"IF('Formularz wyceny'!$D$15=\"PLN\",Waluty!C14,)","v":893.4959349593496},{"$f":"IF('Formularz wyceny'!$D$15=\"PLN\",Waluty!$C$4,IF('Formularz wyceny'!$D$15=\"EUR\",Waluty!$D$4,IF('Formularz wyceny'!$D$15=\"DKK\",Waluty!$G$4,IF('Formularz wyceny'!$D$15=\"CHF\",Waluty!$E$4,IF('Formularz wyceny'!$D$15=\"SEK\",Waluty!$F$4,Waluty!$C$4)))))","v":"zł"},"",{"$f":"IF('Formularz wyceny'!$D$15=\"PLN\",Waluty!$C$4,IF('Formularz wyceny'!$D$15=\"EUR\",Waluty!$D$4,IF('Formularz wyceny'!$D$15=\"DKK\",Waluty!$G$4,IF('Formularz wyceny'!$D$15=\"CHF\",Waluty!$E$4,IF('Formularz wyceny'!$D$15=\"SEK\",Waluty!$F$4,Waluty!$C$4)))))","v":"zł"}]
[null,"TOUCH PANEL 4B, TF-Bus",null,null,{"$f":"IF(Obliczenia!N86=0,IF(OR(Dodatkowe!H25=0,Dodatkowe!H25=\"\"),\"\",SUM(Obliczenia!N86,Dodatkowe!H25)),SUM(Obliczenia!N86,Dodatkowe!H25))","v":""},"szt.",{"$f":"IF('Formularz wyceny'!$D$15=\"PLN\",Waluty!C15,)","v":446.34146341463418},{"$f":"IF('Formularz wyceny'!$D$15=\"PLN\",Waluty!$C$4,IF('Formularz wyceny'!$D$15=\"EUR\",Waluty!$D$4,IF('Formularz wyceny'!$D$15=\"DKK\",Waluty!$G$4,IF('Formularz wyceny'!$D$15=\"CHF\",Waluty!$E$4,IF('Formularz wyceny'!$D$15=\"SEK\",Waluty!$F$4,Waluty!$C$4)))))","v":"zł"},"",{"$f":"IF('Formularz wyceny'!$D$15=\"PLN\",Waluty!$C$4,IF('Formularz wyceny'!$D$15=\"EUR\",Waluty!$D$4,IF('Formularz wyceny'!$D$15=\"DKK\",Waluty!$G$4,IF('Formularz wyceny'!$D$15=\"CHF\",Waluty!$E$4,IF('Formularz wyceny'!$D$15=\"SEK\",Waluty!$F$4,Waluty!$C$4)))))","v":"zł"}]
[null,"TOUCH PANEL 8B, TF-Bus",null,null,{"$f":"IF(Obliczenia!N87=0,IF(OR(Dodatkowe!H26=0,Dodatkowe!H26=\"\"),\"\",SUM(Obliczenia!N87,Dodatkowe!H26)),SUM(Obliczenia!N87,Dodatkowe!H26))","v":""},"szt.",{"$f":"IF('Formularz wyceny'!$D$15=\"PLN\",Waluty!C16,IF('Formularz wyceny'!$D$15=\"EUR\",Waluty!D16,IF('Formularz wyceny'!$D$15=\"DKK\",Waluty!G16,IF('Formularz wyceny'!$D$15=\"CHF\",Waluty!E16,IF('Formularz wyceny'!$D$15=\"SEK\",Waluty!F16,Waluty!C16)))))","v":527.64227642276421},{"$f":"IF('Formularz wyceny'!$D$15=\"PLN\",Waluty!$C$4,IF('Formularz wyceny'!$D$15=\"EUR\",Waluty!$D$4,IF('Formularz wyceny'!$D$15=\"DKK\",Waluty!$G$4,IF('Formularz wyceny'!$D$15=\"CHF\",Waluty!$E$4,IF('Formularz wyceny'!$D$15=\"SEK\",Waluty!$F$4,Waluty!$C$4)))))","v":"zł"},"",{"$f":"IF('Formularz wyceny'!$D$15=\"PLN\",Waluty!$C$4,IF('Formularz wyceny'!$D$15=\"EUR\",Waluty!$D$4,IF('Formularz wyceny'!$D$15=\"DKK\",Waluty!$G$4,IF('Formularz wyceny'!$D$15=\"CHF\",Waluty!$E$4,IF('Formularz wyceny'!$D$15=\"SEK\",Waluty!$F$4,Waluty!$C$4)))))","v":"zł"}]
[null,"GATE MODBUS, DIN, Eth",null,null,{"$f":"IF(Obliczenia!N90=0,IF(OR(Dodatkowe!H17=0,Dodatkowe!H17=\"\"),\"\",SUM(Obliczenia!N90,Dodatkowe!H17)),SUM(Obliczenia!N90,Dodatkowe!H17))","v":""},"szt.",{"$f":"IF('Formularz wyceny'!$D$15=\"PLN\",Waluty!C17,)","v":779.67479674796743},{"$f":"IF('Formularz wyceny'!$D$15=\"PLN\",Waluty!$C$4,IF('Formularz wyceny'!$D$15=\"EUR\",Waluty!$D$4,IF('Formularz wyceny'!$D$15=\"DKK\",Waluty!$G$4,IF('Formularz wyceny'!$D$15=\"CHF\",Waluty!$E$4,IF('Formularz wyceny'!$D$15=\"SEK\",Waluty!$F$4,Waluty!$C$4)))))","v":"zł"},"",{"$f":"IF('Formularz wyceny'!$D$15=\"PLN\",Waluty!$C$4,IF('Formularz wyceny'!$D$15=\"EUR\",Waluty!$D$4,IF('Formularz wyceny'!$D$15=\"DKK\",Waluty!$G$4,IF('Formularz wyceny'!$D$15=\"CHF\",Waluty!$E$4,IF('Formularz wyceny'!$D$15=\"SEK\",Waluty!$F$4,Waluty!$C$4)))))","v":"zł"}]
[null,"GATE ALARM, DIN, Eth",null,null,{"$f":"IF(Obliczenia!N89=0,IF(OR(Dodatkowe!H18=0,Dodatkowe!H18=\"\"),\"\",SUM(Obliczenia!N89,Dodatkowe!H18)),SUM(Obliczenia!N89,Dodatkowe!H18))","v":""},"szt.",{"$f":"IF('Formularz wyceny'!$D$15=\"PLN\",Waluty!C18,)","v":779.67479674796743},{"$f":"IF('Formularz wyceny'!$D$15=\"PLN\",Waluty!$C$4,IF('Formularz wyceny'!$D$15=\"EUR\",Waluty!$D$4,IF('Formularz wyceny'!$D$15=\"DKK\",Waluty!$G$4,IF('Formularz wyceny'!$D$15=\"CHF\",Waluty!$E$4,IF('Formularz wyceny'!$D$15=\"SEK\",Waluty!$F$4,Waluty!$C$4)))))","v":"zł"},"",{"$f":"IF('Formularz wyceny'!$D$15=\"PLN\",Waluty!$C$4,IF('Formularz wyceny'!$D$15=\"EUR\",Waluty!$D$4,IF('Formularz wyceny'!$D$15=\"DKK\",Waluty!$G$4,IF('Formularz wyceny'!$D$15=\"CHF\",Waluty!$E$4,IF('Formularz wyceny'!$D$15=\"SEK\",Waluty!$F$4,Waluty!$C$4)))))","v":"zł"}]
[null,"GATE HTTP, DIN, Eth",null,null,{"$f":"IF(Obliczenia!N88=0,IF(OR(Dodatkowe!H19=0,Dodatkowe!H19=\"\"),\"\",SUM(Obliczenia!N88,Dodatkowe!H19)),SUM(Obliczenia!N88,Dodatkowe!H19))","v":""},"szt.",{"$f":"IF('Formularz wyceny'!$D$15=\"PLN\",Waluty!C19,)","v":804.06504065040656},{"$f":"IF('Formularz wyceny'!$D$15=\"PLN\",Waluty!$C$4,IF('Formularz wyceny'!$D$15=\"EUR\",Waluty!$D$4,IF('Formularz wyceny'!$D$15=\"DKK\",Waluty!$G$4,IF('Formularz wyceny'!$D$15=\"CHF\",Waluty!$E$4,IF('Formularz wyceny'!$D$15=\"SEK\",Waluty!$F$4,Waluty!$C$4)))))","v":"zł"},"",{"$f":"IF('Formularz wyceny'!$D$15=\"PLN\",Waluty!$C$4,IF('Formularz wyceny'!$D$15=\"EUR\",Waluty!$D$4,IF('Formularz wyceny'!$D$15=\"DKK\",Waluty!$G$4,IF('Formularz wyceny'!$D$15=\"CHF\",Waluty!$E$4,IF('Formularz wyceny'!$D$15=\"SEK\",Waluty!$F$4,Waluty!$C$4)))))","v":"zł"}]
[null,"BUS MODULE, DIN, TF-Bus",null,null,{"$f":"IF(E16=\"\",IF(OR(Dodatkowe!H20=0,Dodatkowe!H20=\"\"),\"\",SUM(ROUNDUP(Obliczenia!P94,0),Dodatkowe!H20)),SUM(ROUNDUP(Obliczenia!P94,0),Dodatkowe!H20))","v":""},"szt.",{"$f":"IF('Formularz wyceny'!$D$15=\"PLN\",Waluty!C20,)","v":80.487804878048777},{"$f":"IF('Formularz wyceny'!$D$15=\"PLN\",Waluty!$C$4,IF('Formularz wyceny'!$D$15=\"EUR\",Waluty!$D$4,IF('Formularz wyceny'!$D$15=\"DKK\",Waluty!$G$4,IF('Formularz wyceny'!$D$15=\"CHF\",Waluty!$E$4,IF('Formularz wyceny'!$D$15=\"SEK\",Waluty!$F$4,Waluty!$C$4)))))","v":"zł"},"",{"$f":"IF('Formularz wyceny'!$D$15=\"PLN\",Waluty!$C$4,IF('Formularz wyceny'!$D$15=\"EUR\",Waluty!$D$4,IF('Formularz wyceny'!$D$15=\"DKK\",Waluty!$G$4,IF('Formularz wyceny'!$D$15=\"CHF\",Waluty!$E$4,IF('Formularz wyceny'!$D$15=\"SEK\",Waluty!$F$4,Waluty!$C$4)))))","v":"zł"}]
[null,"GRENTON 24V BUS WIRE L, TF-Bus",null,null,{"$f":"E31","v":""},"szt.",{"$f":"IF('Formularz wyceny'!$D$15=\"PLN\",Waluty!C21,)","v":12.2},{"$f":"IF('Formularz wyceny'!$D$15=\"PLN\",Waluty!$C$4,IF('Formularz wyceny'!$D$15=\"EUR\",Waluty!$D$4,IF('Formularz wyceny'!$D$15=\"DKK\",Waluty!$G$4,IF('Formularz wyceny'!$D$15=\"CHF\",Waluty!$E$4,IF('Formularz wyceny'!$D$15=\"SEK\",Waluty!$F$4,Waluty!$C$4)))))","v":"zł"},"",{"$f":"IF('Formularz wyceny'!$D$15=\"PLN\",Waluty!$C$4,IF('Formularz wyceny'!$D$15=\"EUR\",Waluty!$D$4,IF('Formularz wyceny'!$D$15=\"DKK\",Waluty!$G$4,IF('Formularz wyceny'!$D$15=\"CHF\",Waluty!$E$4,IF('Formularz wyceny'!$D$15=\"SEK\",Waluty!$F$4,Waluty!$C$4)))))","v":"zł"}]
[null,"GRENTON MULTISENSOR IR",null,null,{"$f":"IF(Obliczenia!N91=0,IF(OR(Dodatkowe!H45=0,Dodatkowe!H45=\"\"),\"\",SUM(Obliczenia!N91,Dodatkowe!H45)),SUM(Obliczenia!N91,Dodatkowe!H45))","v":""},"szt.",{"$f":"IF('Formularz wyceny'!$D$15=\"PLN\",Waluty!C26,IF('Formularz wyceny'!$D$15=\"EUR\",Waluty!D26,IF('Formularz wyceny'!$D$15=\"DKK\",Waluty!G26,IF('Formularz wyceny'!$D$15=\"CHF\",Waluty!E26,IF('Formularz wyceny'!$D$15=\"SEK\",Waluty!F26,Waluty!C26)))))","v":893.5},{"$f":"IF('Formularz wyceny'!$D$15=\"PLN\",Waluty!$C$4,IF('Formularz wyceny'!$D$15=\"EUR\",Waluty!$D$4,IF('Formularz wyceny'!$D$15=\"DKK\",Waluty!$G$4,IF('Formularz wyceny'!$D$15=\"CHF\",Waluty!$E$4,IF('Formularz wyceny'!$D$15=\"SEK\",Waluty!$F$4,Waluty!$C$4)))))","v":"zł"},"",{"$f":"IF('Formularz wyceny'!$D$15=\"PLN\",Waluty!$C$4,IF('Formularz wyceny'!$D$15=\"EUR\",Waluty!$D$4,IF('Formularz wyceny'!$D$15=\"DKK\",Waluty!$G$4,IF('Formularz wyceny'!$D$15=\"CHF\",Waluty!$E$4,IF('Formularz wyceny'!$D$15=\"SEK\",Waluty!$F$4,Waluty!$C$4)))))","v":"zł"}]
[null,"Zasilacz  TDK DC 24V 1,25A, DIN",null,null,{"$f":"IF(IF(Obliczenia!P94>1.15,Dodatkowe!H49,SUM(Obliczenia!P94,Dodatkowe!H49))=0,\"\",IF(IF(Obliczenia!P94>0,SUM(1,Dodatkowe!H49),Dodatkowe!H49)=0,\"\",IF(Obliczenia!P94>0,SUM(1,Dodatkowe!H49),Dodatkowe!H49)))","v":""},"szt.",{"$f":"IF('Formularz wyceny'!$D$15=\"PLN\",Waluty!C23,IF('Formularz wyceny'!$D$15=\"EUR\",Waluty!D23,IF('Formularz wyceny'!$D$15=\"DKK\",Waluty!G23,IF('Formularz wyceny'!$D$15=\"CHF\",Waluty!E23,IF('Formularz wyceny'!$D$15=\"SEK\",Waluty!F23,Waluty!C23)))))","v":186.17886178861789},{"$f":"IF('Formularz wyceny'!$D$15=\"PLN\",Waluty!$C$4,IF('Formularz wyceny'!$D$15=\"EUR\",Waluty!$D$4,IF('Formularz wyceny'!$D$15=\"DKK\",Waluty!$G$4,IF('Formularz wyceny'!$D$15=\"CHF\",Waluty!$E$4,IF('Formularz wyceny'!$D$15=\"SEK\",Waluty!$F$4,Waluty!$C$4)))))","v":"zł"},"",{"$f":"IF('Formularz wyceny'!$D$15=\"PLN\",Waluty!$C$4,IF('Formularz wyceny'!$D$15=\"EUR\",Waluty!$D$4,IF('Formularz wyceny'!$D$15=\"DKK\",Waluty!$G$4,IF('Formularz wyceny'!$D$15=\"CHF\",Waluty!$E$4,IF('Formularz wyceny'!$D$15=\"SEK\",Waluty!$F$4,Waluty!$C$4)))))","v":"zł"}]
[null,"Zasilacz TDK DC 24V 2,5A, DIN",null,null,{"$f":"IF(IF(Obliczenia!P93>1.15,SUM(ROUNDUP(Obliczenia!P93/2.5,0),Dodatkowe!H50),Dodatkowe!H50)=0,\"\",IF(Obliczenia!P93<1.5,Dodatkowe!H50,SUM(ROUNDUP(Obliczenia!P93/2.5,0))))","v":""},"szt.",{"$f":"IF('Formularz wyceny'!$D$15=\"PLN\",Waluty!C25,)","v":226.82926829268294},{"$f":"IF('Formularz wyceny'!$D$15=\"PLN\",Waluty!$C$4,IF('Formularz wyceny'!$D$15=\"EUR\",Waluty!$D$4,IF('Formularz wyceny'!$D$15=\"DKK\",Waluty!$G$4,IF('Formularz wyceny'!$D$15=\"CHF\",Waluty!$E$4,IF('Formularz wyceny'!$D$15=\"SEK\",Waluty!$F$4,Waluty!$C$4)))))","v":"zł"},"",{"$f":"IF('Formularz wyceny'!$D$15=\"PLN\",Waluty!$C$4,IF('Formularz wyceny'!$D$15=\"EUR\",Waluty!$D$4,IF('Formularz wyceny'!$D$15=\"DKK\",Waluty!$G$4,IF('Formularz wyceny'!$D$15=\"CHF\",Waluty!$E$4,IF('Formularz wyceny'!$D$15=\"SEK\",Waluty!$F$4,Waluty!$C$4)))))","v":"zł"}]
[]
[]
[]
[null,null,null,null,null,null,"Łącznie netto:",null,{"$f":"SUM(I16:I35)","v":0},{"$f":"IF('Formularz wyceny'!$D$15=\"PLN\",Waluty!$C$4,IF('Formularz wyceny'!$D$15=\"EUR\",Waluty!$D$4,IF('Formularz wyceny'!$D$15=\"DKK\",Waluty!$G$4,IF('Formularz wyceny'!$D$15=\"CHF\",Waluty!$E$4,IF('Formularz wyceny'!$D$15=\"SEK\",Waluty!$F$4,Waluty!$C$4)))))","v":"zł"}]
[null,null,null,null,null,null,"Łącznie brutto:",null,{"$f":"IF('Formularz wyceny'!$D$15=\"PLN\",I39*(1+Waluty!C2),IF('Formularz wyceny'!$D$15=\"SEK\",I39*(1+Waluty!F2),IF('Formularz wyceny'!$D$15=\"DKK\",I39*(1+Waluty!G2),IF('Formularz wyceny'!$D$15=\"CHF\",I39*(1+Waluty!E2),IF('Formularz wyceny'!$D$15=\"EUR\",\"\",I39*(1+Waluty!C2))))))","v":0},{"$f":"IF('Formularz wyceny'!$D$15=\"PLN\",Waluty!$C$4,IF('Formularz wyceny'!$D$15=\"EUR\",Waluty!$D$4,IF('Formularz wyceny'!$D$15=\"DKK\",Waluty!$G$4,IF('Formularz wyceny'!$D$15=\"CHF\",Waluty!$E$4,IF('Formularz wyceny'!$D$15=\"SEK\",Waluty!$F$4,Waluty!$C$4)))))","v":"zł"},null,"grenton@grenton.pl"]
[]
[]
[]
[]
[]
["Dodatkowe urządzenia zawarte w ofercie Grenton"]
[]
[null,"Opis",null,null,"Ilość  ",null,"Cena netto/szt.",null,"Cena netto"]
[null,{"$f":"Waluty!B27","v":"I/O MODULE 2/2, FLUSH, TF-Bus, 1-Wire"},null,null,{"$f":"IF(Dodatkowe!H30=0,\"\",Dodatkowe!H30)","v":""},"szt.",{"$f":"Waluty!C27","v":348.78048780487808},{"$f":"IF('Formularz wyceny'!$D$15=\"PLN\",Waluty!$C$4,IF('Formularz wyceny'!$D$15=\"EUR\",Waluty!$D$4,IF('Formularz wyceny'!$D$15=\"DKK\",Waluty!$G$4,IF('Formularz wyceny'!$D$15=\"CHF\",Waluty!$E$4,IF('Formularz wyceny'!$D$15=\"SEK\",Waluty!$F$4,Waluty!$C$4)))))","v":"zł"},{"$f":"IF(E49=\"\",\"\",E49*G49)","v":""},{"$f":"IF('Formularz wyceny'!$D$15=\"PLN\",Waluty!$C$4,IF('Formularz wyceny'!$D$15=\"EUR\",Waluty!$D$4,IF('Formularz wyceny'!$D$15=\"DKK\",Waluty!$G$4,IF('Formularz wyceny'!$D$15=\"CHF\",Waluty!$E$4,IF('Formularz wyceny'!$D$15=\"SEK\",Waluty!$F$4,Waluty!$C$4)))))","v":"zł"}]
[null,{"$f":"Waluty!B28","v":"ROLLER SHUTTER, FLUSH, TF-Bus, 1-Wire"},null,null,{"$f":"IF(Dodatkowe!H31=0,\"\",Dodatkowe!H31)","v":""},"szt.",{"$f":"Waluty!C28","v":348.78048780487808},{"$f":"IF('Formularz wyceny'!$D$15=\"PLN\",Waluty!$C$4,IF('Formularz wyceny'!$D$15=\"EUR\",Waluty!$D$4,IF('Formularz wyceny'!$D$15=\"DKK\",Waluty!$G$4,IF('Formularz wyceny'!$D$15=\"CHF\",Waluty!$E$4,IF('Formularz wyceny'!$D$15=\"SEK\",Waluty!$F$4,Waluty!$C$4)))))","v":"zł"},{"$f":"IF(E50=\"\",\"\",E50*G50)","v":""},{"$f":"IF('Formularz wyceny'!$D$15=\"PLN\",Waluty!$C$4,IF('Formularz wyceny'!$D$15=\"EUR\",Waluty!$D$4,IF('Formularz wyceny'!$D$15=\"DKK\",Waluty!$G$4,IF('Formularz wyceny'!$D$15=\"CHF\",Waluty!$E$4,IF('Formularz wyceny'!$D$15=\"SEK\",Waluty!$F$4,Waluty!$C$4)))))","v":"zł"}]
[null,{"$f":"Waluty!B29","v":"DIGITAL IN, WiFi"},null,null,{"$f":"IF(Dodatkowe!H35=0,\"\",Dodatkowe!H35)","v":""},"szt.",{"$f":"Waluty!C29","v":365.04},{"$f":"IF('Formularz wyceny'!$D$15=\"PLN\",Waluty!$C$4,IF('Formularz wyceny'!$D$15=\"EUR\",Waluty!$D$4,IF('Formularz wyceny'!$D$15=\"DKK\",Waluty!$G$4,IF('Formularz wyceny'!$D$15=\"CHF\",Waluty!$E$4,IF('Formularz wyceny'!$D$15=\"SEK\",Waluty!$F$4,Waluty!$C$4)))))","v":"zł"},"",{"$f":"IF('Formularz wyceny'!$D$15=\"PLN\",Waluty!$C$4,IF('Formularz wyceny'!$D$15=\"EUR\",Waluty!$D$4,IF('Formularz wyceny'!$D$15=\"DKK\",Waluty!$G$4,IF('Formularz wyceny'!$D$15=\"CHF\",Waluty!$E$4,IF('Formularz wyceny'!$D$15=\"SEK\",Waluty!$F$4,Waluty!$C$4)))))","v":"zł"}]
[null,{"$f":"Waluty!B30","v":"RELAY X2, WiFi"},null,null,{"$f":"IF(Dodatkowe!H36=0,\"\",Dodatkowe!H36)","v":""},"szt.",{"$f":"Waluty!C30","v":365.04},{"$f":"IF('Formularz wyceny'!$D$15=\"PLN\",Waluty!$C$4,IF('Formularz wyceny'!$D$15=\"EUR\",Waluty!$D$4,IF('Formularz wyceny'!$D$15=\"DKK\",Waluty!$G$4,IF('Formularz wyceny'!$D$15=\"CHF\",Waluty!$E$4,IF('Formularz wyceny'!$D$15=\"SEK\",Waluty!$F$4,Waluty!$C$4)))))","v":"zł"},"",{"$f":"IF('Formularz wyceny'!$D$15=\"PLN\",Waluty!$C$4,IF('Formularz wyceny'!$D$15=\"EUR\",Waluty!$D$4,IF('Formularz wyceny'!$D$15=\"DKK\",Waluty!$G$4,IF('Formularz wyceny'!$D$15=\"CHF\",Waluty!$E$4,IF('Formularz wyceny'!$D$15=\"SEK\",Waluty!$F$4,Waluty!$C$4)))))","v":"zł"}]
[null,{"$f":"Waluty!B31","v":"ROLLER SHUTTER, WiFi"},null,null,{"$f":"IF(Dodatkowe!H37=0,\"\",Dodatkowe!H37)","v":""},"szt.",{"$f":"Waluty!C31","v":365.04},{"$f":"IF('Formularz wyceny'!$D$15=\"PLN\",Waluty!$C$4,IF('Formularz wyceny'!$D$15=\"EUR\",Waluty!$D$4,IF('Formularz wyceny'!$D$15=\"DKK\",Waluty!$G$4,IF('Formularz wyceny'!$D$15=\"CHF\",Waluty!$E$4,IF('Formularz wyceny'!$D$15=\"SEK\",Waluty!$F$4,Waluty!$C$4)))))","v":"zł"},"",{"$f":"IF('Formularz wyceny'!$D$15=\"PLN\",Waluty!$C$4,IF('Formularz wyceny'!$D$15=\"EUR\",Waluty!$D$4,IF('Formularz wyceny'!$D$15=\"DKK\",Waluty!$G$4,IF('Formularz wyceny'!$D$15=\"CHF\",Waluty!$E$4,IF('Formularz wyceny'!$D$15=\"SEK\",Waluty!$F$4,Waluty!$C$4)))))","v":"zł"}]
[null,{"$f":"Waluty!B32","v":"INFIBITY DOOR & WINDOW SENSOR, Z-Wave"},null,null,{"$f":"IF(Dodatkowe!H41=0,\"\",Dodatkowe!H41)","v":""},"szt.",{"$f":"Waluty!C32","v":153.65853658536585},{"$f":"IF('Formularz wyceny'!$D$15=\"PLN\",Waluty!$C$4,IF('Formularz wyceny'!$D$15=\"EUR\",Waluty!$D$4,IF('Formularz wyceny'!$D$15=\"DKK\",Waluty!$G$4,IF('Formularz wyceny'!$D$15=\"CHF\",Waluty!$E$4,IF('Formularz wyceny'!$D$15=\"SEK\",Waluty!$F$4,Waluty!$C$4)))))","v":"zł"},"",{"$f":"IF('Formularz wyceny'!$D$15=\"PLN\",Waluty!$C$4,IF('Formularz wyceny'!$D$15=\"EUR\",Waluty!$D$4,IF('Formularz wyceny'!$D$15=\"DKK\",Waluty!$G$4,IF('Formularz wyceny'!$D$15=\"CHF\",Waluty!$E$4,IF('Formularz wyceny'!$D$15=\"SEK\",Waluty!$F$4,Waluty!$C$4)))))","v":"zł"}]
[null,{"$f":"Waluty!B33","v":"INFIBITY MOTION SENSOR, Z-WAVE"},null,null,{"$f":"IF(Dodatkowe!H42=0,\"\",Dodatkowe!H42)","v":""},"szt.",{"$f":"Waluty!C33","v":194.3089430894309},{"$f":"IF('Formularz wyceny'!$D$15=\"PLN\",Waluty!$C$4,IF('Formularz wyceny'!$D$15=\"EUR\",Waluty!$D$4,IF('Formularz wyceny'!$D$15=\"DKK\",Waluty!$G$4,IF('Formularz wyceny'!$D$15=\"CHF\",Waluty!$E$4,IF('Formularz wyceny'!$D$15=\"SEK\",Waluty!$F$4,Waluty!$C$4)))))","v":"zł"},"",{"$f":"IF('Formularz wyceny'!$D$15=\"PLN\",Waluty!$C$4,IF('Formularz wyceny'!$D$15=\"EUR\",Waluty!$D$4,IF('Formularz wyceny'!$D$15=\"DKK\",Waluty!$G$4,IF('Formularz wyceny'!$D$15=\"CHF\",Waluty!$E$4,IF('Formularz wyceny'!$D$15=\"SEK\",Waluty!$F$4,Waluty!$C$4)))))","v":"zł"}]
[null,{"$f":"Waluty!B34","v":"INFIBITY SIREN ALARM, Z-Wave"},null,null,{"$f":"IF(Dodatkowe!H43=0,\"\",Dodatkowe!H43)","v":""},"szt.",{"$f":"Waluty!C34","v":169.91869918699186},{"$f":"IF('Formularz wyceny'!$D$15=\"PLN\",Waluty!$C$4,IF('Formularz wyceny'!$D$15=\"EUR\",Waluty!$D$4,IF('Formularz wyceny'!$D$15=\"DKK\",Waluty!$G$4,IF('Formularz wyceny'!$D$15=\"CHF\",Waluty!$E$4,IF('Formularz wyceny'!$D$15=\"SEK\",Waluty!$F$4,Waluty!$C$4)))))","v":"zł"},"",{"$f":"IF('Formularz wyceny'!$D$15=\"PLN\",Waluty!$C$4,IF('Formularz wyceny'!$D$15=\"EUR\",Waluty!$D$4,IF('Formularz wyceny'!$D$15=\"DKK\",Waluty!$G$4,IF('Formularz wyceny'!$D$15=\"CHF\",Waluty!$E$4,IF('Formularz wyceny'!$D$15=\"SEK\",Waluty!$F$4,Waluty!$C$4)))))","v":"zł"}]
[null,{"$f":"Waluty!B35","v":"INFIBITY WATER LEAK SENSOR, Z-Wave"},null,null,{"$f":"IF(Dodatkowe!H44=0,\"\",Dodatkowe!H44)","v":""},"szt.",{"$f":"Waluty!C35","v":194.3089430894309},{"$f":"IF('Formularz wyceny'!$D$15=\"PLN\",Waluty!$C$4,IF('Formularz wyceny'!$D$15=\"EUR\",Waluty!$D$4,IF('Formularz wyceny'!$D$15=\"DKK\",Waluty!$G$4,IF('Formularz wyceny'!$D$15=\"CHF\",Waluty!$E$4,IF('Formularz wyceny'!$D$15=\"SEK\",Waluty!$F$4,Waluty!$C$4)))))","v":"zł"},"",{"$f":"IF('Formularz wyceny'!$D$15=\"PLN\",Waluty!$C$4,IF('Formularz wyceny'!$D$15=\"EUR\",Waluty!$D$4,IF('Formularz wyceny'!$D$15=\"DKK\",Waluty!$G$4,IF('Formularz wyceny'!$D$15=\"CHF\",Waluty!$E$4,IF('Formularz wyceny'!$D$15=\"SEK\",Waluty!$F$4,Waluty!$C$4)))))","v":"zł"}]
[null,{"$f":"Waluty!B36","v":"GRENTON 24V BUS WIRE L, TF-Bus"},null,null,{"$f":"IF(Dodatkowe!H54=0,\"\",Dodatkowe!H54)","v":""},"szt.",{"$f":"Waluty!C36","v":12.195121951219512},{"$f":"IF('Formularz wyceny'!$D$15=\"PLN\",Waluty!$C$4,IF('Formularz wyceny'!$D$15=\"EUR\",Waluty!$D$4,IF('Formularz wyceny'!$D$15=\"DKK\",Waluty!$G$4,IF('Formularz wyceny'!$D$15=\"CHF\",Waluty!$E$4,IF('Formularz wyceny'!$D$15=\"SEK\",Waluty!$F$4,Waluty!$C$4)))))","v":"zł"},"",{"$f":"IF('Formularz wyceny'!$D$15=\"PLN\",Waluty!$C$4,IF('Formularz wyceny'!$D$15=\"EUR\",Waluty!$D$4,IF('Formularz wyceny'!$D$15=\"DKK\",Waluty!$G$4,IF('Formularz wyceny'!$D$15=\"CHF\",Waluty!$E$4,IF('Formularz wyceny'!$D$15=\"SEK\",Waluty!$F$4,Waluty!$C$4)))))","v":"zł"}]
[null,{"$f":"Waluty!B37","v":"GRENTON 24V BUS WIRE XL, TF-Bus"},null,null,{"$f":"IF(Dodatkowe!H55=0,\"\",Dodatkowe!H55)","v":""},"szt.",{"$f":"Waluty!C37","v":15.45},{"$f":"IF('Formularz wyceny'!$D$15=\"PLN\",Waluty!$C$4,IF('Formularz wyceny'!$D$15=\"EUR\",Waluty!$D$4,IF('Formularz wyceny'!$D$15=\"DKK\",Waluty!$G$4,IF('Formularz wyceny'!$D$15=\"CHF\",Waluty!$E$4,IF('Formularz wyceny'!$D$15=\"SEK\",Waluty!$F$4,Waluty!$C$4)))))","v":"zł"},"",{"$f":"IF('Formularz wyceny'!$D$15=\"PLN\",Waluty!$C$4,IF('Formularz wyceny'!$D$15=\"EUR\",Waluty!$D$4,IF('Formularz wyceny'!$D$15=\"DKK\",Waluty!$G$4,IF('Formularz wyceny'!$D$15=\"CHF\",Waluty!$E$4,IF('Formularz wyceny'!$D$15=\"SEK\",Waluty!$F$4,Waluty!$C$4)))))","v":"zł"}]
[null,{"$f":"Waluty!B38","v":"Antena L, Z-Wave"},null,null,{"$f":"IF(Dodatkowe!H59=0,\"\",Dodatkowe!H59)","v":""},"szt.",{"$f":"Waluty!C38","v":88.62},{"$f":"IF('Formularz wyceny'!$D$15=\"PLN\",Waluty!$C$4,IF('Formularz wyceny'!$D$15=\"EUR\",Waluty!$D$4,IF('Formularz wyceny'!$D$15=\"DKK\",Waluty!$G$4,IF('Formularz wyceny'!$D$15=\"CHF\",Waluty!$E$4,IF('Formularz wyceny'!$D$15=\"SEK\",Waluty!$F$4,Waluty!$C$4)))))","v":"zł"},"",{"$f":"IF('Formularz wyceny'!$D$15=\"PLN\",Waluty!$C$4,IF('Formularz wyceny'!$D$15=\"EUR\",Waluty!$D$4,IF('Formularz wyceny'!$D$15=\"DKK\",Waluty!$G$4,IF('Formularz wyceny'!$D$15=\"CHF\",Waluty!$E$4,IF('Formularz wyceny'!$D$15=\"SEK\",Waluty!$F$4,Waluty!$C$4)))))","v":"zł"}]
[null,{"$f":"Waluty!B39","v":"Antena S, Z-Wave"},null,null,{"$f":"IF(Dodatkowe!H60=0,\"\",Dodatkowe!H60)","v":""},"szt.",{"$f":"Waluty!C39","v":64.23},{"$f":"IF('Formularz wyceny'!$D$15=\"PLN\",Waluty!$C$4,IF('Formularz wyceny'!$D$15=\"EUR\",Waluty!$D$4,IF('Formularz wyceny'!$D$15=\"DKK\",Waluty!$G$4,IF('Formularz wyceny'!$D$15=\"CHF\",Waluty!$E$4,IF('Formularz wyceny'!$D$15=\"SEK\",Waluty!$F$4,Waluty!$C$4)))))","v":"zł"},"",{"$f":"IF('Formularz wyceny'!$D$15=\"PLN\",Waluty!$C$4,IF('Formularz wyceny'!$D$15=\"EUR\",Waluty!$D$4,IF('Formularz wyceny'!$D$15=\"DKK\",Waluty!$G$4,IF('Formularz wyceny'!$D$15=\"CHF\",Waluty!$E$4,IF('Formularz wyceny'!$D$15=\"SEK\",Waluty!$F$4,Waluty!$C$4)))))","v":"zł"}]
[null,{"$f":"Waluty!B40","v":"GRENTON ELEKTROZAWÓR WODNY 3/4\" 230 V NC"},null,null,{"$f":"IF(Dodatkowe!H64=0,\"\",Dodatkowe!H64)","v":""},"szt.",{"$f":"Waluty!C40","v":397.5609756097561},{"$f":"IF('Formularz wyceny'!$D$15=\"PLN\",Waluty!$C$4,IF('Formularz wyceny'!$D$15=\"EUR\",Waluty!$D$4,IF('Formularz wyceny'!$D$15=\"DKK\",Waluty!$G$4,IF('Formularz wyceny'!$D$15=\"CHF\",Waluty!$E$4,IF('Formularz wyceny'!$D$15=\"SEK\",Waluty!$F$4,Waluty!$C$4)))))","v":"zł"},"",{"$f":"IF('Formularz wyceny'!$D$15=\"PLN\",Waluty!$C$4,IF('Formularz wyceny'!$D$15=\"EUR\",Waluty!$D$4,IF('Formularz wyceny'!$D$15=\"DKK\",Waluty!$G$4,IF('Formularz wyceny'!$D$15=\"CHF\",Waluty!$E$4,IF('Formularz wyceny'!$D$15=\"SEK\",Waluty!$F$4,Waluty!$C$4)))))","v":"zł"}]
[null,{"$f":"Waluty!B41","v":"Głowica Termostatyczna M30 230V NC"},null,null,{"$f":"IF(Dodatkowe!H65=0,\"\",Dodatkowe!H65)","v":""},"szt.",{"$f":"Waluty!C41","v":69.11},{"$f":"IF('Formularz wyceny'!$D$15=\"PLN\",Waluty!$C$4,IF('Formularz wyceny'!$D$15=\"EUR\",Waluty!$D$4,IF('Formularz wyceny'!$D$15=\"DKK\",Waluty!$G$4,IF('Formularz wyceny'!$D$15=\"CHF\",Waluty!$E$4,IF('Formularz wyceny'!$D$15=\"SEK\",Waluty!$F$4,Waluty!$C$4)))))","v":"zł"},"",{"$f":"IF('Formularz wyceny'!$D$15=\"PLN\",Waluty!$C$4,IF('Formularz wyceny'!$D$15=\"EUR\",Waluty!$D$4,IF('Formularz wyceny'!$D$15=\"DKK\",Waluty!$G$4,IF('Formularz wyceny'!$D$15=\"CHF\",Waluty!$E$4,IF('Formularz wyceny'!$D$15=\"SEK\",Waluty!$F$4,Waluty!$C$4)))))","v":"zł"}]
[null,{"$f":"Waluty!B42","v":"Głowica Termostatyczna typu RA 230V NC"},null,null,{"$f":"IF(Dodatkowe!H66=0,\"\",Dodatkowe!H66)","v":""},"szt.",{"$f":"Waluty!C42","v":397.56},{"$f":"IF('Formularz wyceny'!$D$15=\"PLN\",Waluty!$C$4,IF('Formularz wyceny'!$D$15=\"EUR\",Waluty!$D$4,IF('Formularz wyceny'!$D$15=\"DKK\",Waluty!$G$4,IF('Formularz wyceny'!$D$15=\"CHF\",Waluty!$E$4,IF('Formularz wyceny'!$D$15=\"SEK\",Waluty!$F$4,Waluty!$C$4)))))","v":"zł"},"",{"$f":"IF('Formularz wyceny'!$D$15=\"PLN\",Waluty!$C$4,IF('Formularz wyceny'!$D$15=\"EUR\",Waluty!$D$4,IF('Formularz wyceny'!$D$15=\"DKK\",Waluty!$G$4,IF('Formularz wyceny'!$D$15=\"CHF\",Waluty!$E$4,IF('Formularz wyceny'!$D$15=\"SEK\",Waluty!$F$4,Waluty!$C$4)))))","v":"zł"}]
[null,{"$f":"Waluty!B43","v":"Wewnętrzny Czujnik Temperatury, 1-Wire"},null,null,{"$f":"IF(Dodatkowe!H67=0,\"\",Dodatkowe!H67)","v":""},"szt.",{"$f":"Waluty!C43","v":17.073170731707318},{"$f":"IF('Formularz wyceny'!$D$15=\"PLN\",Waluty!$C$4,IF('Formularz wyceny'!$D$15=\"EUR\",Waluty!$D$4,IF('Formularz wyceny'!$D$15=\"DKK\",Waluty!$G$4,IF('Formularz wyceny'!$D$15=\"CHF\",Waluty!$E$4,IF('Formularz wyceny'!$D$15=\"SEK\",Waluty!$F$4,Waluty!$C$4)))))","v":"zł"},"",{"$f":"IF('Formularz wyceny'!$D$15=\"PLN\",Waluty!$C$4,IF('Formularz wyceny'!$D$15=\"EUR\",Waluty!$D$4,IF('Formularz wyceny'!$D$15=\"DKK\",Waluty!$G$4,IF('Formularz wyceny'!$D$15=\"CHF\",Waluty!$E$4,IF('Formularz wyceny'!$D$15=\"SEK\",Waluty!$F$4,Waluty!$C$4)))))","v":"zł"}]
[null,{"$f":"Waluty!B44","v":"Wewnętrzny Czujnik Wilgotności, 0-10 V"},null,null,{"$f":"IF(Dodatkowe!H68=0,\"\",Dodatkowe!H68)","v":""},"szt.",{"$f":"Waluty!C44","v":356.91056910569108},{"$f":"IF('Formularz wyceny'!$D$15=\"PLN\",Waluty!$C$4,IF('Formularz wyceny'!$D$15=\"EUR\",Waluty!$D$4,IF('Formularz wyceny'!$D$15=\"DKK\",Waluty!$G$4,IF('Formularz wyceny'!$D$15=\"CHF\",Waluty!$E$4,IF('Formularz wyceny'!$D$15=\"SEK\",Waluty!$F$4,Waluty!$C$4)))))","v":"zł"},"",{"$f":"IF('Formularz wyceny'!$D$15=\"PLN\",Waluty!$C$4,IF('Formularz wyceny'!$D$15=\"EUR\",Waluty!$D$4,IF('Formularz wyceny'!$D$15=\"DKK\",Waluty!$G$4,IF('Formularz wyceny'!$D$15=\"CHF\",Waluty!$E$4,IF('Formularz wyceny'!$D$15=\"SEK\",Waluty!$F$4,Waluty!$C$4)))))","v":"zł"}]
[null,{"$f":"Waluty!B45","v":"Zewnętrzny Czujnik Temperatury, 1-Wire"},null,null,{"$f":"IF(Dodatkowe!H69=0,\"\",Dodatkowe!H69)","v":""},"szt.",{"$f":"Waluty!C45","v":39.840000000000003},{"$f":"IF('Formularz wyceny'!$D$15=\"PLN\",Waluty!$C$4,IF('Formularz wyceny'!$D$15=\"EUR\",Waluty!$D$4,IF('Formularz wyceny'!$D$15=\"DKK\",Waluty!$G$4,IF('Formularz wyceny'!$D$15=\"CHF\",Waluty!$E$4,IF('Formularz wyceny'!$D$15=\"SEK\",Waluty!$F$4,Waluty!$C$4)))))","v":"zł"},"",{"$f":"IF('Formularz wyceny'!$D$15=\"PLN\",Waluty!$C$4,IF('Formularz wyceny'!$D$15=\"EUR\",Waluty!$D$4,IF('Formularz wyceny'!$D$15=\"DKK\",Waluty!$G$4,IF('Formularz wyceny'!$D$15=\"CHF\",Waluty!$E$4,IF('Formularz wyceny'!$D$15=\"SEK\",Waluty!$F$4,Waluty!$C$4)))))","v":"zł"}]
[null,{"$f":"Waluty!B46","v":"Zewnętrzny Czujnik Wilgotności, 0-10 V"},null,null,{"$f":"IF(Dodatkowe!H70=0,\"\",Dodatkowe!H70)","v":""},"szt.",{"$f":"Waluty!C46","v":503.2520325203252},{"$f":"IF('Formularz wyceny'!$D$15=\"PLN\",Waluty!$C$4,IF('Formularz wyceny'!$D$15=\"EUR\",Waluty!$D$4,IF('Formularz wyceny'!$D$15=\"DKK\",Waluty!$G$4,IF('Formularz wyceny'!$D$15=\"CHF\",Waluty!$E$4,IF('Formularz wyceny'!$D$15=\"SEK\",Waluty!$F$4,Waluty!$C$4)))))","v":"zł"},"",{"$f":"IF('Formularz wyceny'!$D$15=\"PLN\",Waluty!$C$4,IF('Formularz wyceny'!$D$15=\"EUR\",Waluty!$D$4,IF('Formularz wyceny'!$D$15=\"DKK\",Waluty!$G$4,IF('Formularz wyceny'!$D$15=\"CHF\",Waluty!$E$4,IF('Formularz wyceny'!$D$15=\"SEK\",Waluty!$F$4,Waluty!$C$4)))))","v":"zł"}]
[null,{"$f":"Dodatkowe!B74","v":0},null,null,{"$f":"IF(Dodatkowe!H74=0,\"\",Dodatkowe!H74)","v":""},"szt.",{"$f":"Dodatkowe!E74","v":0},{"$f":"IF('Formularz wyceny'!$D$15=\"PLN\",Waluty!$C$4,IF('Formularz wyceny'!$D$15=\"EUR\",Waluty!$D$4,IF('Formularz wyceny'!$D$15=\"DKK\",Waluty!$G$4,IF('Formularz wyceny'!$D$15=\"CHF\",Waluty!$E$4,IF('Formularz wyceny'!$D$15=\"SEK\",Waluty!$F$4,Waluty!$C$4)))))","v":"zł"},"",{"$f":"IF('Formularz wyceny'!$D$15=\"PLN\",Waluty!$C$4,IF('Formularz wyceny'!$D$15=\"EUR\",Waluty!$D$4,IF('Formularz wyceny'!$D$15=\"DKK\",Waluty!$G$4,IF('Formularz wyceny'!$D$15=\"CHF\",Waluty!$E$4,IF('Formularz wyceny'!$D$15=\"SEK\",Waluty!$F$4,Waluty!$C$4)))))","v":"zł"}]
[null,{"$f":"Dodatkowe!B75","v":0},null,null,{"$f":"IF(Dodatkowe!H75=0,\"\",Dodatkowe!H75)","v":""},"szt.",{"$f":"Dodatkowe!E75","v":0},{"$f":"IF('Formularz wyceny'!$D$15=\"PLN\",Waluty!$C$4,IF('Formularz wyceny'!$D$15=\"EUR\",Waluty!$D$4,IF('Formularz wyceny'!$D$15=\"DKK\",Waluty!$G$4,IF('Formularz wyceny'!$D$15=\"CHF\",Waluty!$E$4,IF('Formularz wyceny'!$D$15=\"SEK\",Waluty!$F$4,Waluty!$C$4)))))","v":"zł"},"",{"$f":"IF('Formularz wyceny'!$D$15=\"PLN\",Waluty!$C$4,IF('Formularz wyceny'!$D$15=\"EUR\",Waluty!$D$4,IF('Formularz wyceny'!$D$15=\"DKK\",Waluty!$G$4,IF('Formularz wyceny'!$D$15=\"CHF\",Waluty!$E$4,IF('Formularz wyceny'!$D$15=\"SEK\",Waluty!$F$4,Waluty!$C$4)))))","v":"zł"}]
[null,{"$f":"Dodatkowe!B76","v":0},null,null,{"$f":"IF(Dodatkowe!H76=0,\"\",Dodatkowe!H76)","v":""},"szt.",{"$f":"Dodatkowe!E76","v":0},{"$f":"IF('Formularz wyceny'!$D$15=\"PLN\",Waluty!$C$4,IF('Formularz wyceny'!$D$15=\"EUR\",Waluty!$D$4,IF('Formularz wyceny'!$D$15=\"DKK\",Waluty!$G$4,IF('Formularz wyceny'!$D$15=\"CHF\",Waluty!$E$4,IF('Formularz wyceny'!$D$15=\"SEK\",Waluty!$F$4,Waluty!$C$4)))))","v":"zł"},"",{"$f":"IF('Formularz wyceny'!$D$15=\"PLN\",Waluty!$C$4,IF('Formularz wyceny'!$D$15=\"EUR\",Waluty!$D$4,IF('Formularz wyceny'!$D$15=\"DKK\",Waluty!$G$4,IF('Formularz wyceny'!$D$15=\"CHF\",Waluty!$E$4,IF('Formularz wyceny'!$D$15=\"SEK\",Waluty!$F$4,Waluty!$C$4)))))","v":"zł"}]
[null,{"$f":"Dodatkowe!B77","v":0},null,null,{"$f":"IF(Dodatkowe!H77=0,\"\",Dodatkowe!H77)","v":""},"szt.",{"$f":"Dodatkowe!E77","v":0},{"$f":"IF('Formularz wyceny'!$D$15=\"PLN\",Waluty!$C$4,IF('Formularz wyceny'!$D$15=\"EUR\",Waluty!$D$4,IF('Formularz wyceny'!$D$15=\"DKK\",Waluty!$G$4,IF('Formularz wyceny'!$D$15=\"CHF\",Waluty!$E$4,IF('Formularz wyceny'!$D$15=\"SEK\",Waluty!$F$4,Waluty!$C$4)))))","v":"zł"},"",{"$f":"IF('Formularz wyceny'!$D$15=\"PLN\",Waluty!$C$4,IF('Formularz wyceny'!$D$15=\"EUR\",Waluty!$D$4,IF('Formularz wyceny'!$D$15=\"DKK\",Waluty!$G$4,IF('Formularz wyceny'!$D$15=\"CHF\",Waluty!$E$4,IF('Formularz wyceny'!$D$15=\"SEK\",Waluty!$F$4,Waluty!$C$4)))))","v":"zł"}]
[null,{"$f":"Dodatkowe!B78","v":0},null,null,{"$f":"IF(Dodatkowe!H78=0,\"\",Dodatkowe!H78)","v":""},"szt.",{"$f":"Dodatkowe!E78","v":0},{"$f":"IF('Formularz wyceny'!$D$15=\"PLN\",Waluty!$C$4,IF('Formularz wyceny'!$D$15=\"EUR\",Waluty!$D$4,IF('Formularz wyceny'!$D$15=\"DKK\",Waluty!$G$4,IF('Formularz wyceny'!$D$15=\"CHF\",Waluty!$E$4,IF('Formularz wyceny'!$D$15=\"SEK\",Waluty!$F$4,Waluty!$C$4)))))","v":"zł"},"",{"$f":"IF('Formularz wyceny'!$D$15=\"PLN\",Waluty!$C$4,IF('Formularz wyceny'!$D$15=\"EUR\",Waluty!$D$4,IF('Formularz wyceny'!$D$15=\"DKK\",Waluty!$G$4,IF('Formularz wyceny'!$D$15=\"CHF\",Waluty!$E$4,IF('Formularz wyceny'!$D$15=\"SEK\",Waluty!$F$4,Waluty!$C$4)))))","v":"zł"}]
[]
[null,null,null,null,null,null,"Łącznie netto:",null,{"$f":"SUM(I49:I73,I16:I35,)","v":0},{"$f":"IF('Formularz wyceny'!$D$15=\"PLN\",Waluty!$C$4,IF('Formularz wyceny'!$D$15=\"EUR\",Waluty!$D$4,IF('Formularz wyceny'!$D$15=\"DKK\",Waluty!$G$4,IF('Formularz wyceny'!$D$15=\"CHF\",Waluty!$E$4,IF('Formularz wyceny'!$D$15=\"SEK\",Waluty!$F$4,Waluty!$C$4)))))","v":"zł"}]
[null,null,null,null,null,null,"Łącznie brutto:",null,{"$f":"IF('Formularz wyceny'!$D$15=\"PLN\",I75*(1+Waluty!C2),IF('Formularz wyceny'!$D$15=\"SEK\",I75*(1+Waluty!F2),IF('Formularz wyceny'!$D$15=\"DKK\",I75*(1+Waluty!G2),IF('Formularz wyceny'!$D$15=\"CHF\",I75*(1+Waluty!E2),IF('Formularz wyceny'!$D$15=\"EUR\",\"\",I75*(1+Waluty!C2))))))","v":0},{"$f":"IF('Formularz wyceny'!$D$15=\"PLN\",Waluty!$C$4,IF('Formularz wyceny'!$D$15=\"EUR\",Waluty!$D$4,IF('Formularz wyceny'!$D$15=\"DKK\",Waluty!$G$4,IF('Formularz wyceny'!$D$15=\"CHF\",Waluty!$E$4,IF('Formularz wyceny'!$D$15=\"SEK\",Waluty!$F$4,Waluty!$C$4)))))","v":"zł"}]
[]
[]
[]
[]
[]
[]
["Funkcjonalności systemu Grenton"]
[]
[null,"."]
[null,"."]
[]
[]
[]
[]
[]
[]
[]
[]
[]
[]
[]
[]
[]
[null,"Opis funkcjonalności"]
[]
[]
[]
[]
[null,"Szczegóły"]

{"sheet":"Grafika","index":5,"n_rows":0,"n_cols":0,"rows_kept":0,"cut":false,"hidden":true,"merged":[]}